{"text_format":"3","workbook":"xlsx","n_sheets":2,"sheets":["Início","Calendário Anual"],"not_rendered":{"images":4,"defined_names":14},"read":"whole","date_system":"1900"}

{"sheet":"Início","index":0,"n_rows":7,"n_cols":2,"rows_kept":7}
[null,"SOBRE ESTE MODELO"]
[null,"Use este modelo para criar um calendário anual personalizado para pequenas empresas."]
[null,"Preencha com o Nome da Empresa, detalhes de contato e adicione o Logotipo da Empresa."]
[null,"Selecione o ano e insira datas e eventos importantes."]
[null,"Observação: "]
[null,"Instruções adicionais foram fornecidas na coluna A da planilha CALENDÁRIO ANUAL. Este texto foi ocultado intencionalmente. Para removê-lo, selecione a coluna A e selecione Excluir. "]
[null,"Para saber mais sobre tabelas, pressione SHIFT e F10 dentro de uma tabela, selecione a opção TABELA e, em seguida, selecione TEXTO ALTERNATIVO."]

{"sheet":"Calendário Anual","index":1,"n_rows":55,"n_cols":21,"rows_kept":55,"merged":[[0,2,0,5],[1,1,1,12],[2,2,2,8],[2,10,2,16],[2,21,47,22],[11,2,11,8],[11,10,11,16],[20,2,20,8],[20,10,20,16],[29,2,29,8],[29,10,29,16],[38,2,38,8],[38,10,38,16],[47,2,47,8],[47,10,47,16],[50,20,54,20]]}
["Crie um Calendário Anual para Pequenas Empresas nesta planilha. Instruções úteis sobre como usar esta planilha estão nas células desta coluna. Selecione o controle giratório na célula à direita para alterar o ano na célula C1. O rótulo de Datas Importantes está na célula U1.",null,2020,{"$nulls":17},"DATAS IMPORTANTES"]
["As Dicas estão na célula à direta.","Clique no controle giratório para alterar o ano do calendário"]
["O calendário do ano selecionado está nas células C3 a Q55, o calendário de janeiro nas células C4 a I10 e o calendário de fevereiro nas células K4 a Q10. O rótulo de Janeiro está na célula C3 e o de Fevereiro na célula K3. Insira datas e eventos importantes nas células U3 a U42",null,"JANEIRO",{"$nulls":7},"FEVEREIRO",{"$nulls":9},"1° DE JANEIRO"]
["A tabela do calendário de Janeiro está nas células C4 a I10 e a de Fevereiro nas células K4 a Q10. A próxima instrução está na célula A12",null,"DOM","SEG","TER","QUA","QUI","SEX","SÁB",null,"DOM","SEG","TER","QUA","QUI","SEX","SÁB",{"$nulls":3},"DIA DE ANO NOVO"]
[null,null,{"$f":"IF(DAY(JanDom1)=1,\"\",IF(AND(YEAR(JanDom1+1)=AnoDoCalendário,MONTH(JanDom1+1)=1),JanDom1+1,\"\"))","v":""},{"$f":"IF(DAY(JanDom1)=1,\"\",IF(AND(YEAR(JanDom1+2)=AnoDoCalendário,MONTH(JanDom1+2)=1),JanDom1+2,\"\"))","v":""},{"$f":"IF(DAY(JanDom1)=1,\"\",IF(AND(YEAR(JanDom1+3)=AnoDoCalendário,MONTH(JanDom1+3)=1),JanDom1+3,\"\"))","v":""},{"$f":"IF(DAY(JanDom1)=1,\"\",IF(AND(YEAR(JanDom1+4)=AnoDoCalendário,MONTH(JanDom1+4)=1),JanDom1+4,\"\"))","v":"2020-01-01"},{"$f":"IF(DAY(JanDom1)=1,\"\",IF(AND(YEAR(JanDom1+5)=AnoDoCalendário,MONTH(JanDom1+5)=1),JanDom1+5,\"\"))","v":"2020-01-02"},{"$f":"IF(DAY(JanDom1)=1,\"\",IF(AND(YEAR(JanDom1+6)=AnoDoCalendário,MONTH(JanDom1+6)=1),JanDom1+6,\"\"))","v":"2020-01-03"},{"$f":"IF(DAY(JanDom1)=1,IF(AND(YEAR(JanDom1)=AnoDoCalendário,MONTH(JanDom1)=1),JanDom1,\"\"),IF(AND(YEAR(JanDom1+7)=AnoDoCalendário,MONTH(JanDom1+7)=1),JanDom1+7,\"\"))","v":"2020-01-04"},null,{"$f":"IF(DAY(FevDom1)=1,\"\",IF(AND(YEAR(FevDom1+1)=AnoDoCalendário,MONTH(FevDom1+1)=2),FevDom1+1,\"\"))","v":""},{"$f":"IF(DAY(FevDom1)=1,\"\",IF(AND(YEAR(FevDom1+2)=AnoDoCalendário,MONTH(FevDom1+2)=2),FevDom1+2,\"\"))","v":""},{"$f":"IF(DAY(FevDom1)=1,\"\",IF(AND(YEAR(FevDom1+3)=AnoDoCalendário,MONTH(FevDom1+3)=2),FevDom1+3,\"\"))","v":""},{"$f":"IF(DAY(FevDom1)=1,\"\",IF(AND(YEAR(FevDom1+4)=AnoDoCalendário,MONTH(FevDom1+4)=2),FevDom1+4,\"\"))","v":""},{"$f":"IF(DAY(FevDom1)=1,\"\",IF(AND(YEAR(FevDom1+5)=AnoDoCalendário,MONTH(FevDom1+5)=2),FevDom1+5,\"\"))","v":""},{"$f":"IF(DAY(FevDom1)=1,\"\",IF(AND(YEAR(FevDom1+6)=AnoDoCalendário,MONTH(FevDom1+6)=2),FevDom1+6,\"\"))","v":""},{"$f":"IF(DAY(FevDom1)=1,IF(AND(YEAR(FevDom1)=AnoDoCalendário,MONTH(FevDom1)=2),FevDom1,\"\"),IF(AND(YEAR(FevDom1+7)=AnoDoCalendário,MONTH(FevDom1+7)=2),FevDom1+7,\"\"))","v":"2020-02-01"}]
[null,null,{"$f":"IF(DAY(JanDom1)=1,IF(AND(YEAR(JanDom1+1)=AnoDoCalendário,MONTH(JanDom1+1)=1),JanDom1+1,\"\"),IF(AND(YEAR(JanDom1+8)=AnoDoCalendário,MONTH(JanDom1+8)=1),JanDom1+8,\"\"))","v":"2020-01-05"},{"$f":"IF(DAY(JanDom1)=1,IF(AND(YEAR(JanDom1+2)=AnoDoCalendário,MONTH(JanDom1+2)=1),JanDom1+2,\"\"),IF(AND(YEAR(JanDom1+9)=AnoDoCalendário,MONTH(JanDom1+9)=1),JanDom1+9,\"\"))","v":"2020-01-06"},{"$f":"IF(DAY(JanDom1)=1,IF(AND(YEAR(JanDom1+3)=AnoDoCalendário,MONTH(JanDom1+3)=1),JanDom1+3,\"\"),IF(AND(YEAR(JanDom1+10)=AnoDoCalendário,MONTH(JanDom1+10)=1),JanDom1+10,\"\"))","v":"2020-01-07"},{"$f":"IF(DAY(JanDom1)=1,IF(AND(YEAR(JanDom1+4)=AnoDoCalendário,MONTH(JanDom1+4)=1),JanDom1+4,\"\"),IF(AND(YEAR(JanDom1+11)=AnoDoCalendário,MONTH(JanDom1+11)=1),JanDom1+11,\"\"))","v":"2020-01-08"},{"$f":"IF(DAY(JanDom1)=1,IF(AND(YEAR(JanDom1+5)=AnoDoCalendário,MONTH(JanDom1+5)=1),JanDom1+5,\"\"),IF(AND(YEAR(JanDom1+12)=AnoDoCalendário,MONTH(JanDom1+12)=1),JanDom1+12,\"\"))","v":"2020-01-09"},{"$f":"IF(DAY(JanDom1)=1,IF(AND(YEAR(JanDom1+6)=AnoDoCalendário,MONTH(JanDom1+6)=1),JanDom1+6,\"\"),IF(AND(YEAR(JanDom1+13)=AnoDoCalendário,MONTH(JanDom1+13)=1),JanDom1+13,\"\"))","v":"2020-01-10"},{"$f":"IF(DAY(JanDom1)=1,IF(AND(YEAR(JanDom1+7)=AnoDoCalendário,MONTH(JanDom1+7)=1),JanDom1+7,\"\"),IF(AND(YEAR(JanDom1+14)=AnoDoCalendário,MONTH(JanDom1+14)=1),JanDom1+14,\"\"))","v":"2020-01-11"},null,{"$f":"IF(DAY(FevDom1)=1,IF(AND(YEAR(FevDom1+1)=AnoDoCalendário,MONTH(FevDom1+1)=2),FevDom1+1,\"\"),IF(AND(YEAR(FevDom1+8)=AnoDoCalendário,MONTH(FevDom1+8)=2),FevDom1+8,\"\"))","v":"2020-02-02"},{"$f":"IF(DAY(FevDom1)=1,IF(AND(YEAR(FevDom1+2)=AnoDoCalendário,MONTH(FevDom1+2)=2),FevDom1+2,\"\"),IF(AND(YEAR(FevDom1+9)=AnoDoCalendário,MONTH(FevDom1+9)=2),FevDom1+9,\"\"))","v":"2020-02-03"},{"$f":"IF(DAY(FevDom1)=1,IF(AND(YEAR(FevDom1+3)=AnoDoCalendário,MONTH(FevDom1+3)=2),FevDom1+3,\"\"),IF(AND(YEAR(FevDom1+10)=AnoDoCalendário,MONTH(FevDom1+10)=2),FevDom1+10,\"\"))","v":"2020-02-04"},{"$f":"IF(DAY(FevDom1)=1,IF(AND(YEAR(FevDom1+4)=AnoDoCalendário,MONTH(FevDom1+4)=2),FevDom1+4,\"\"),IF(AND(YEAR(FevDom1+11)=AnoDoCalendário,MONTH(FevDom1+11)=2),FevDom1+11,\"\"))","v":"2020-02-05"},{"$f":"IF(DAY(FevDom1)=1,IF(AND(YEAR(FevDom1+5)=AnoDoCalendário,MONTH(FevDom1+5)=2),FevDom1+5,\"\"),IF(AND(YEAR(FevDom1+12)=AnoDoCalendário,MONTH(FevDom1+12)=2),FevDom1+12,\"\"))","v":"2020-02-06"},{"$f":"IF(DAY(FevDom1)=1,IF(AND(YEAR(FevDom1+6)=AnoDoCalendário,MONTH(FevDom1+6)=2),FevDom1+6,\"\"),IF(AND(YEAR(FevDom1+13)=AnoDoCalendário,MONTH(FevDom1+13)=2),FevDom1+13,\"\"))","v":"2020-02-07"},{"$f":"IF(DAY(FevDom1)=1,IF(AND(YEAR(FevDom1+7)=AnoDoCalendário,MONTH(FevDom1+7)=2),FevDom1+7,\"\"),IF(AND(YEAR(FevDom1+14)=AnoDoCalendário,MONTH(FevDom1+14)=2),FevDom1+14,\"\"))","v":"2020-02-08"},{"$nulls":3},"12 DE FEVEREIRO"]
[null,null,{"$f":"IF(DAY(JanDom1)=1,IF(AND(YEAR(JanDom1+8)=AnoDoCalendário,MONTH(JanDom1+8)=1),JanDom1+8,\"\"),IF(AND(YEAR(JanDom1+15)=AnoDoCalendário,MONTH(JanDom1+15)=1),JanDom1+15,\"\"))","v":"2020-01-12"},{"$f":"IF(DAY(JanDom1)=1,IF(AND(YEAR(JanDom1+9)=AnoDoCalendário,MONTH(JanDom1+9)=1),JanDom1+9,\"\"),IF(AND(YEAR(JanDom1+16)=AnoDoCalendário,MONTH(JanDom1+16)=1),JanDom1+16,\"\"))","v":"2020-01-13"},{"$f":"IF(DAY(JanDom1)=1,IF(AND(YEAR(JanDom1+10)=AnoDoCalendário,MONTH(JanDom1+10)=1),JanDom1+10,\"\"),IF(AND(YEAR(JanDom1+17)=AnoDoCalendário,MONTH(JanDom1+17)=1),JanDom1+17,\"\"))","v":"2020-01-14"},{"$f":"IF(DAY(JanDom1)=1,IF(AND(YEAR(JanDom1+11)=AnoDoCalendário,MONTH(JanDom1+11)=1),JanDom1+11,\"\"),IF(AND(YEAR(JanDom1+18)=AnoDoCalendário,MONTH(JanDom1+18)=1),JanDom1+18,\"\"))","v":"2020-01-15"},{"$f":"IF(DAY(JanDom1)=1,IF(AND(YEAR(JanDom1+12)=AnoDoCalendário,MONTH(JanDom1+12)=1),JanDom1+12,\"\"),IF(AND(YEAR(JanDom1+19)=AnoDoCalendário,MONTH(JanDom1+19)=1),JanDom1+19,\"\"))","v":"2020-01-16"},{"$f":"IF(DAY(JanDom1)=1,IF(AND(YEAR(JanDom1+13)=AnoDoCalendário,MONTH(JanDom1+13)=1),JanDom1+13,\"\"),IF(AND(YEAR(JanDom1+20)=AnoDoCalendário,MONTH(JanDom1+20)=1),JanDom1+20,\"\"))","v":"2020-01-17"},{"$f":"IF(DAY(JanDom1)=1,IF(AND(YEAR(JanDom1+14)=AnoDoCalendário,MONTH(JanDom1+14)=1),JanDom1+14,\"\"),IF(AND(YEAR(JanDom1+21)=AnoDoCalendário,MONTH(JanDom1+21)=1),JanDom1+21,\"\"))","v":"2020-01-18"},null,{"$f":"IF(DAY(FevDom1)=1,IF(AND(YEAR(FevDom1+8)=AnoDoCalendário,MONTH(FevDom1+8)=2),FevDom1+8,\"\"),IF(AND(YEAR(FevDom1+15)=AnoDoCalendário,MONTH(FevDom1+15)=2),FevDom1+15,\"\"))","v":"2020-02-09"},{"$f":"IF(DAY(FevDom1)=1,IF(AND(YEAR(FevDom1+9)=AnoDoCalendário,MONTH(FevDom1+9)=2),FevDom1+9,\"\"),IF(AND(YEAR(FevDom1+16)=AnoDoCalendário,MONTH(FevDom1+16)=2),FevDom1+16,\"\"))","v":"2020-02-10"},{"$f":"IF(DAY(FevDom1)=1,IF(AND(YEAR(FevDom1+10)=AnoDoCalendário,MONTH(FevDom1+10)=2),FevDom1+10,\"\"),IF(AND(YEAR(FevDom1+17)=AnoDoCalendário,MONTH(FevDom1+17)=2),FevDom1+17,\"\"))","v":"2020-02-11"},{"$f":"IF(DAY(FevDom1)=1,IF(AND(YEAR(FevDom1+11)=AnoDoCalendário,MONTH(FevDom1+11)=2),FevDom1+11,\"\"),IF(AND(YEAR(FevDom1+18)=AnoDoCalendário,MONTH(FevDom1+18)=2),FevDom1+18,\"\"))","v":"2020-02-12"},{"$f":"IF(DAY(FevDom1)=1,IF(AND(YEAR(FevDom1+12)=AnoDoCalendário,MONTH(FevDom1+12)=2),FevDom1+12,\"\"),IF(AND(YEAR(FevDom1+19)=AnoDoCalendário,MONTH(FevDom1+19)=2),FevDom1+19,\"\"))","v":"2020-02-13"},{"$f":"IF(DAY(FevDom1)=1,IF(AND(YEAR(FevDom1+13)=AnoDoCalendário,MONTH(FevDom1+13)=2),FevDom1+13,\"\"),IF(AND(YEAR(FevDom1+20)=AnoDoCalendário,MONTH(FevDom1+20)=2),FevDom1+20,\"\"))","v":"2020-02-14"},{"$f":"IF(DAY(FevDom1)=1,IF(AND(YEAR(FevDom1+14)=AnoDoCalendário,MONTH(FevDom1+14)=2),FevDom1+14,\"\"),IF(AND(YEAR(FevDom1+21)=AnoDoCalendário,MONTH(FevDom1+21)=2),FevDom1+21,\"\"))","v":"2020-02-15"},{"$nulls":3},"CARNAVAL"]
[null,null,{"$f":"IF(DAY(JanDom1)=1,IF(AND(YEAR(JanDom1+15)=AnoDoCalendário,MONTH(JanDom1+15)=1),JanDom1+15,\"\"),IF(AND(YEAR(JanDom1+22)=AnoDoCalendário,MONTH(JanDom1+22)=1),JanDom1+22,\"\"))","v":"2020-01-19"},{"$f":"IF(DAY(JanDom1)=1,IF(AND(YEAR(JanDom1+16)=AnoDoCalendário,MONTH(JanDom1+16)=1),JanDom1+16,\"\"),IF(AND(YEAR(JanDom1+23)=AnoDoCalendário,MONTH(JanDom1+23)=1),JanDom1+23,\"\"))","v":"2020-01-20"},{"$f":"IF(DAY(JanDom1)=1,IF(AND(YEAR(JanDom1+17)=AnoDoCalendário,MONTH(JanDom1+17)=1),JanDom1+17,\"\"),IF(AND(YEAR(JanDom1+24)=AnoDoCalendário,MONTH(JanDom1+24)=1),JanDom1+24,\"\"))","v":"2020-01-21"},{"$f":"IF(DAY(JanDom1)=1,IF(AND(YEAR(JanDom1+18)=AnoDoCalendário,MONTH(JanDom1+18)=1),JanDom1+18,\"\"),IF(AND(YEAR(JanDom1+25)=AnoDoCalendário,MONTH(JanDom1+25)=1),JanDom1+25,\"\"))","v":"2020-01-22"},{"$f":"IF(DAY(JanDom1)=1,IF(AND(YEAR(JanDom1+19)=AnoDoCalendário,MONTH(JanDom1+19)=1),JanDom1+19,\"\"),IF(AND(YEAR(JanDom1+26)=AnoDoCalendário,MONTH(JanDom1+26)=1),JanDom1+26,\"\"))","v":"2020-01-23"},{"$f":"IF(DAY(JanDom1)=1,IF(AND(YEAR(JanDom1+20)=AnoDoCalendário,MONTH(JanDom1+20)=1),JanDom1+20,\"\"),IF(AND(YEAR(JanDom1+27)=AnoDoCalendário,MONTH(JanDom1+27)=1),JanDom1+27,\"\"))","v":"2020-01-24"},{"$f":"IF(DAY(JanDom1)=1,IF(AND(YEAR(JanDom1+21)=AnoDoCalendário,MONTH(JanDom1+21)=1),JanDom1+21,\"\"),IF(AND(YEAR(JanDom1+28)=AnoDoCalendário,MONTH(JanDom1+28)=1),JanDom1+28,\"\"))","v":"2020-01-25"},null,{"$f":"IF(DAY(FevDom1)=1,IF(AND(YEAR(FevDom1+15)=AnoDoCalendário,MONTH(FevDom1+15)=2),FevDom1+15,\"\"),IF(AND(YEAR(FevDom1+22)=AnoDoCalendário,MONTH(FevDom1+22)=2),FevDom1+22,\"\"))","v":"2020-02-16"},{"$f":"IF(DAY(FevDom1)=1,IF(AND(YEAR(FevDom1+16)=AnoDoCalendário,MONTH(FevDom1+16)=2),FevDom1+16,\"\"),IF(AND(YEAR(FevDom1+23)=AnoDoCalendário,MONTH(FevDom1+23)=2),FevDom1+23,\"\"))","v":"2020-02-17"},{"$f":"IF(DAY(FevDom1)=1,IF(AND(YEAR(FevDom1+17)=AnoDoCalendário,MONTH(FevDom1+17)=2),FevDom1+17,\"\"),IF(AND(YEAR(FevDom1+24)=AnoDoCalendário,MONTH(FevDom1+24)=2),FevDom1+24,\"\"))","v":"2020-02-18"},{"$f":"IF(DAY(FevDom1)=1,IF(AND(YEAR(FevDom1+18)=AnoDoCalendário,MONTH(FevDom1+18)=2),FevDom1+18,\"\"),IF(AND(YEAR(FevDom1+25)=AnoDoCalendário,MONTH(FevDom1+25)=2),FevDom1+25,\"\"))","v":"2020-02-19"},{"$f":"IF(DAY(FevDom1)=1,IF(AND(YEAR(FevDom1+19)=AnoDoCalendário,MONTH(FevDom1+19)=2),FevDom1+19,\"\"),IF(AND(YEAR(FevDom1+26)=AnoDoCalendário,MONTH(FevDom1+26)=2),FevDom1+26,\"\"))","v":"2020-02-20"},{"$f":"IF(DAY(FevDom1)=1,IF(AND(YEAR(FevDom1+20)=AnoDoCalendário,MONTH(FevDom1+20)=2),FevDom1+20,\"\"),IF(AND(YEAR(FevDom1+27)=AnoDoCalendário,MONTH(FevDom1+27)=2),FevDom1+27,\"\"))","v":"2020-02-21"},{"$f":"IF(DAY(FevDom1)=1,IF(AND(YEAR(FevDom1+21)=AnoDoCalendário,MONTH(FevDom1+21)=2),FevDom1+21,\"\"),IF(AND(YEAR(FevDom1+28)=AnoDoCalendário,MONTH(FevDom1+28)=2),FevDom1+28,\"\"))","v":"2020-02-22"}]
[null,null,{"$f":"IF(DAY(JanDom1)=1,IF(AND(YEAR(JanDom1+22)=AnoDoCalendário,MONTH(JanDom1+22)=1),JanDom1+22,\"\"),IF(AND(YEAR(JanDom1+29)=AnoDoCalendário,MONTH(JanDom1+29)=1),JanDom1+29,\"\"))","v":"2020-01-26"},{"$f":"IF(DAY(JanDom1)=1,IF(AND(YEAR(JanDom1+23)=AnoDoCalendário,MONTH(JanDom1+23)=1),JanDom1+23,\"\"),IF(AND(YEAR(JanDom1+30)=AnoDoCalendário,MONTH(JanDom1+30)=1),JanDom1+30,\"\"))","v":"2020-01-27"},{"$f":"IF(DAY(JanDom1)=1,IF(AND(YEAR(JanDom1+24)=AnoDoCalendário,MONTH(JanDom1+24)=1),JanDom1+24,\"\"),IF(AND(YEAR(JanDom1+31)=AnoDoCalendário,MONTH(JanDom1+31)=1),JanDom1+31,\"\"))","v":"2020-01-28"},{"$f":"IF(DAY(JanDom1)=1,IF(AND(YEAR(JanDom1+25)=AnoDoCalendário,MONTH(JanDom1+25)=1),JanDom1+25,\"\"),IF(AND(YEAR(JanDom1+32)=AnoDoCalendário,MONTH(JanDom1+32)=1),JanDom1+32,\"\"))","v":"2020-01-29"},{"$f":"IF(DAY(JanDom1)=1,IF(AND(YEAR(JanDom1+26)=AnoDoCalendário,MONTH(JanDom1+26)=1),JanDom1+26,\"\"),IF(AND(YEAR(JanDom1+33)=AnoDoCalendário,MONTH(JanDom1+33)=1),JanDom1+33,\"\"))","v":"2020-01-30"},{"$f":"IF(DAY(JanDom1)=1,IF(AND(YEAR(JanDom1+27)=AnoDoCalendário,MONTH(JanDom1+27)=1),JanDom1+27,\"\"),IF(AND(YEAR(JanDom1+34)=AnoDoCalendário,MONTH(JanDom1+34)=1),JanDom1+34,\"\"))","v":"2020-01-31"},{"$f":"IF(DAY(JanDom1)=1,IF(AND(YEAR(JanDom1+28)=AnoDoCalendário,MONTH(JanDom1+28)=1),JanDom1+28,\"\"),IF(AND(YEAR(JanDom1+35)=AnoDoCalendário,MONTH(JanDom1+35)=1),JanDom1+35,\"\"))","v":""},null,{"$f":"IF(DAY(FevDom1)=1,IF(AND(YEAR(FevDom1+22)=AnoDoCalendário,MONTH(FevDom1+22)=2),FevDom1+22,\"\"),IF(AND(YEAR(FevDom1+29)=AnoDoCalendário,MONTH(FevDom1+29)=2),FevDom1+29,\"\"))","v":"2020-02-23"},{"$f":"IF(DAY(FevDom1)=1,IF(AND(YEAR(FevDom1+23)=AnoDoCalendário,MONTH(FevDom1+23)=2),FevDom1+23,\"\"),IF(AND(YEAR(FevDom1+30)=AnoDoCalendário,MONTH(FevDom1+30)=2),FevDom1+30,\"\"))","v":"2020-02-24"},{"$f":"IF(DAY(FevDom1)=1,IF(AND(YEAR(FevDom1+24)=AnoDoCalendário,MONTH(FevDom1+24)=2),FevDom1+24,\"\"),IF(AND(YEAR(FevDom1+31)=AnoDoCalendário,MONTH(FevDom1+31)=2),FevDom1+31,\"\"))","v":"2020-02-25"},{"$f":"IF(DAY(FevDom1)=1,IF(AND(YEAR(FevDom1+25)=AnoDoCalendário,MONTH(FevDom1+25)=2),FevDom1+25,\"\"),IF(AND(YEAR(FevDom1+32)=AnoDoCalendário,MONTH(FevDom1+32)=2),FevDom1+32,\"\"))","v":"2020-02-26"},{"$f":"IF(DAY(FevDom1)=1,IF(AND(YEAR(FevDom1+26)=AnoDoCalendário,MONTH(FevDom1+26)=2),FevDom1+26,\"\"),IF(AND(YEAR(FevDom1+33)=AnoDoCalendário,MONTH(FevDom1+33)=2),FevDom1+33,\"\"))","v":"2020-02-27"},{"$f":"IF(DAY(FevDom1)=1,IF(AND(YEAR(FevDom1+27)=AnoDoCalendário,MONTH(FevDom1+27)=2),FevDom1+27,\"\"),IF(AND(YEAR(FevDom1+34)=AnoDoCalendário,MONTH(FevDom1+34)=2),FevDom1+34,\"\"))","v":"2020-02-28"},{"$f":"IF(DAY(FevDom1)=1,IF(AND(YEAR(FevDom1+28)=AnoDoCalendário,MONTH(FevDom1+28)=2),FevDom1+28,\"\"),IF(AND(YEAR(FevDom1+35)=AnoDoCalendário,MONTH(FevDom1+35)=2),FevDom1+35,\"\"))","v":"2020-02-29"},{"$nulls":3},"22 DE FEVEREIRO"]
[null,null,{"$f":"IF(DAY(JanDom1)=1,IF(AND(YEAR(JanDom1+29)=AnoDoCalendário,MONTH(JanDom1+29)=1),JanDom1+29,\"\"),IF(AND(YEAR(JanDom1+36)=AnoDoCalendário,MONTH(JanDom1+36)=1),JanDom1+36,\"\"))","v":""},{"$f":"IF(DAY(JanDom1)=1,IF(AND(YEAR(JanDom1+30)=AnoDoCalendário,MONTH(JanDom1+30)=1),JanDom1+30,\"\"),IF(AND(YEAR(JanDom1+37)=AnoDoCalendário,MONTH(JanDom1+37)=1),JanDom1+37,\"\"))","v":""},{"$f":"IF(DAY(JanDom1)=1,IF(AND(YEAR(JanDom1+31)=AnoDoCalendário,MONTH(JanDom1+31)=1),JanDom1+31,\"\"),IF(AND(YEAR(JanDom1+38)=AnoDoCalendário,MONTH(JanDom1+38)=1),JanDom1+38,\"\"))","v":""},{"$f":"IF(DAY(JanDom1)=1,IF(AND(YEAR(JanDom1+32)=AnoDoCalendário,MONTH(JanDom1+32)=1),JanDom1+32,\"\"),IF(AND(YEAR(JanDom1+39)=AnoDoCalendário,MONTH(JanDom1+39)=1),JanDom1+39,\"\"))","v":""},{"$f":"IF(DAY(JanDom1)=1,IF(AND(YEAR(JanDom1+33)=AnoDoCalendário,MONTH(JanDom1+33)=1),JanDom1+33,\"\"),IF(AND(YEAR(JanDom1+40)=AnoDoCalendário,MONTH(JanDom1+40)=1),JanDom1+40,\"\"))","v":""},{"$f":"IF(DAY(JanDom1)=1,IF(AND(YEAR(JanDom1+34)=AnoDoCalendário,MONTH(JanDom1+34)=1),JanDom1+34,\"\"),IF(AND(YEAR(JanDom1+41)=AnoDoCalendário,MONTH(JanDom1+41)=1),JanDom1+41,\"\"))","v":""},{"$f":"IF(DAY(JanDom1)=1,IF(AND(YEAR(JanDom1+35)=AnoDoCalendário,MONTH(JanDom1+35)=1),JanDom1+35,\"\"),IF(AND(YEAR(JanDom1+42)=AnoDoCalendário,MONTH(JanDom1+42)=1),JanDom1+42,\"\"))","v":""},null,{"$f":"IF(DAY(FevDom1)=1,IF(AND(YEAR(FevDom1+29)=AnoDoCalendário,MONTH(FevDom1+29)=2),FevDom1+29,\"\"),IF(AND(YEAR(FevDom1+36)=AnoDoCalendário,MONTH(FevDom1+36)=2),FevDom1+36,\"\"))","v":""},{"$f":"IF(DAY(FevDom1)=1,IF(AND(YEAR(FevDom1+30)=AnoDoCalendário,MONTH(FevDom1+30)=2),FevDom1+30,\"\"),IF(AND(YEAR(FevDom1+37)=AnoDoCalendário,MONTH(FevDom1+37)=2),FevDom1+37,\"\"))","v":""},{"$f":"IF(DAY(FevDom1)=1,IF(AND(YEAR(FevDom1+31)=AnoDoCalendário,MONTH(FevDom1+31)=2),FevDom1+31,\"\"),IF(AND(YEAR(FevDom1+38)=AnoDoCalendário,MONTH(FevDom1+38)=2),FevDom1+38,\"\"))","v":""},{"$f":"IF(DAY(FevDom1)=1,IF(AND(YEAR(FevDom1+32)=AnoDoCalendário,MONTH(FevDom1+32)=2),FevDom1+32,\"\"),IF(AND(YEAR(FevDom1+39)=AnoDoCalendário,MONTH(FevDom1+39)=2),FevDom1+39,\"\"))","v":""},{"$f":"IF(DAY(FevDom1)=1,IF(AND(YEAR(FevDom1+33)=AnoDoCalendário,MONTH(FevDom1+33)=2),FevDom1+33,\"\"),IF(AND(YEAR(FevDom1+40)=AnoDoCalendário,MONTH(FevDom1+40)=2),FevDom1+40,\"\"))","v":""},{"$f":"IF(DAY(FevDom1)=1,IF(AND(YEAR(FevDom1+34)=AnoDoCalendário,MONTH(FevDom1+34)=2),FevDom1+34,\"\"),IF(AND(YEAR(FevDom1+41)=AnoDoCalendário,MONTH(FevDom1+41)=2),FevDom1+41,\"\"))","v":""},{"$f":"IF(DAY(FevDom1)=1,IF(AND(YEAR(FevDom1+35)=AnoDoCalendário,MONTH(FevDom1+35)=2),FevDom1+35,\"\"),IF(AND(YEAR(FevDom1+42)=AnoDoCalendário,MONTH(FevDom1+42)=2),FevDom1+42,\"\"))","v":""},{"$nulls":3},"FESTA DE INAUGURAÇÃO"]
[]
["O rótulo de Março está na célula C12 e o de Abril na célula K12",null,"MARÇO",{"$nulls":7},"ABRIL"]
["A tabela do calendário de Março está nas células C13 a I19 e a de Abril nas células K13 a Q19. A próxima instrução está na célula A21",null,"DOM","SEG","TER","QUA","QUI","SEX","SÁB",null,"DOM","SEG","TER","QUA","QUI","SEX","SÁB"]
[null,null,{"$f":"IF(DAY(MarDom1)=1,\"\",IF(AND(YEAR(MarDom1+1)=AnoDoCalendário,MONTH(MarDom1+1)=3),MarDom1+1,\"\"))","v":"2020-03-01"},{"$f":"IF(DAY(MarDom1)=1,\"\",IF(AND(YEAR(MarDom1+2)=AnoDoCalendário,MONTH(MarDom1+2)=3),MarDom1+2,\"\"))","v":"2020-03-02"},{"$f":"IF(DAY(MarDom1)=1,\"\",IF(AND(YEAR(MarDom1+3)=AnoDoCalendário,MONTH(MarDom1+3)=3),MarDom1+3,\"\"))","v":"2020-03-03"},{"$f":"IF(DAY(MarDom1)=1,\"\",IF(AND(YEAR(MarDom1+4)=AnoDoCalendário,MONTH(MarDom1+4)=3),MarDom1+4,\"\"))","v":"2020-03-04"},{"$f":"IF(DAY(MarDom1)=1,\"\",IF(AND(YEAR(MarDom1+5)=AnoDoCalendário,MONTH(MarDom1+5)=3),MarDom1+5,\"\"))","v":"2020-03-05"},{"$f":"IF(DAY(MarDom1)=1,\"\",IF(AND(YEAR(MarDom1+6)=AnoDoCalendário,MONTH(MarDom1+6)=3),MarDom1+6,\"\"))","v":"2020-03-06"},{"$f":"IF(DAY(MarDom1)=1,IF(AND(YEAR(MarDom1)=AnoDoCalendário,MONTH(MarDom1)=3),MarDom1,\"\"),IF(AND(YEAR(MarDom1+7)=AnoDoCalendário,MONTH(MarDom1+7)=3),MarDom1+7,\"\"))","v":"2020-03-07"},null,{"$f":"IF(DAY(AbrDom1)=1,\"\",IF(AND(YEAR(AbrDom1+1)=AnoDoCalendário,MONTH(AbrDom1+1)=4),AbrDom1+1,\"\"))","v":""},{"$f":"IF(DAY(AbrDom1)=1,\"\",IF(AND(YEAR(AbrDom1+2)=AnoDoCalendário,MONTH(AbrDom1+2)=4),AbrDom1+2,\"\"))","v":""},{"$f":"IF(DAY(AbrDom1)=1,\"\",IF(AND(YEAR(AbrDom1+3)=AnoDoCalendário,MONTH(AbrDom1+3)=4),AbrDom1+3,\"\"))","v":""},{"$f":"IF(DAY(AbrDom1)=1,\"\",IF(AND(YEAR(AbrDom1+4)=AnoDoCalendário,MONTH(AbrDom1+4)=4),AbrDom1+4,\"\"))","v":"2020-04-01"},{"$f":"IF(DAY(AbrDom1)=1,\"\",IF(AND(YEAR(AbrDom1+5)=AnoDoCalendário,MONTH(AbrDom1+5)=4),AbrDom1+5,\"\"))","v":"2020-04-02"},{"$f":"IF(DAY(AbrDom1)=1,\"\",IF(AND(YEAR(AbrDom1+6)=AnoDoCalendário,MONTH(AbrDom1+6)=4),AbrDom1+6,\"\"))","v":"2020-04-03"},{"$f":"IF(DAY(AbrDom1)=1,IF(AND(YEAR(AbrDom1)=AnoDoCalendário,MONTH(AbrDom1)=4),AbrDom1,\"\"),IF(AND(YEAR(AbrDom1+7)=AnoDoCalendário,MONTH(AbrDom1+7)=4),AbrDom1+7,\"\"))","v":"2020-04-04"}]
[null,null,{"$f":"IF(DAY(MarDom1)=1,IF(AND(YEAR(MarDom1+1)=AnoDoCalendário,MONTH(MarDom1+1)=3),MarDom1+1,\"\"),IF(AND(YEAR(MarDom1+8)=AnoDoCalendário,MONTH(MarDom1+8)=3),MarDom1+8,\"\"))","v":"2020-03-08"},{"$f":"IF(DAY(MarDom1)=1,IF(AND(YEAR(MarDom1+2)=AnoDoCalendário,MONTH(MarDom1+2)=3),MarDom1+2,\"\"),IF(AND(YEAR(MarDom1+9)=AnoDoCalendário,MONTH(MarDom1+9)=3),MarDom1+9,\"\"))","v":"2020-03-09"},{"$f":"IF(DAY(MarDom1)=1,IF(AND(YEAR(MarDom1+3)=AnoDoCalendário,MONTH(MarDom1+3)=3),MarDom1+3,\"\"),IF(AND(YEAR(MarDom1+10)=AnoDoCalendário,MONTH(MarDom1+10)=3),MarDom1+10,\"\"))","v":"2020-03-10"},{"$f":"IF(DAY(MarDom1)=1,IF(AND(YEAR(MarDom1+4)=AnoDoCalendário,MONTH(MarDom1+4)=3),MarDom1+4,\"\"),IF(AND(YEAR(MarDom1+11)=AnoDoCalendário,MONTH(MarDom1+11)=3),MarDom1+11,\"\"))","v":"2020-03-11"},{"$f":"IF(DAY(MarDom1)=1,IF(AND(YEAR(MarDom1+5)=AnoDoCalendário,MONTH(MarDom1+5)=3),MarDom1+5,\"\"),IF(AND(YEAR(MarDom1+12)=AnoDoCalendário,MONTH(MarDom1+12)=3),MarDom1+12,\"\"))","v":"2020-03-12"},{"$f":"IF(DAY(MarDom1)=1,IF(AND(YEAR(MarDom1+6)=AnoDoCalendário,MONTH(MarDom1+6)=3),MarDom1+6,\"\"),IF(AND(YEAR(MarDom1+13)=AnoDoCalendário,MONTH(MarDom1+13)=3),MarDom1+13,\"\"))","v":"2020-03-13"},{"$f":"IF(DAY(MarDom1)=1,IF(AND(YEAR(MarDom1+7)=AnoDoCalendário,MONTH(MarDom1+7)=3),MarDom1+7,\"\"),IF(AND(YEAR(MarDom1+14)=AnoDoCalendário,MONTH(MarDom1+14)=3),MarDom1+14,\"\"))","v":"2020-03-14"},null,{"$f":"IF(DAY(AbrDom1)=1,IF(AND(YEAR(AbrDom1+1)=AnoDoCalendário,MONTH(AbrDom1+1)=4),AbrDom1+1,\"\"),IF(AND(YEAR(AbrDom1+8)=AnoDoCalendário,MONTH(AbrDom1+8)=4),AbrDom1+8,\"\"))","v":"2020-04-05"},{"$f":"IF(DAY(AbrDom1)=1,IF(AND(YEAR(AbrDom1+2)=AnoDoCalendário,MONTH(AbrDom1+2)=4),AbrDom1+2,\"\"),IF(AND(YEAR(AbrDom1+9)=AnoDoCalendário,MONTH(AbrDom1+9)=4),AbrDom1+9,\"\"))","v":"2020-04-06"},{"$f":"IF(DAY(AbrDom1)=1,IF(AND(YEAR(AbrDom1+3)=AnoDoCalendário,MONTH(AbrDom1+3)=4),AbrDom1+3,\"\"),IF(AND(YEAR(AbrDom1+10)=AnoDoCalendário,MONTH(AbrDom1+10)=4),AbrDom1+10,\"\"))","v":"2020-04-07"},{"$f":"IF(DAY(AbrDom1)=1,IF(AND(YEAR(AbrDom1+4)=AnoDoCalendário,MONTH(AbrDom1+4)=4),AbrDom1+4,\"\"),IF(AND(YEAR(AbrDom1+11)=AnoDoCalendário,MONTH(AbrDom1+11)=4),AbrDom1+11,\"\"))","v":"2020-04-08"},{"$f":"IF(DAY(AbrDom1)=1,IF(AND(YEAR(AbrDom1+5)=AnoDoCalendário,MONTH(AbrDom1+5)=4),AbrDom1+5,\"\"),IF(AND(YEAR(AbrDom1+12)=AnoDoCalendário,MONTH(AbrDom1+12)=4),AbrDom1+12,\"\"))","v":"2020-04-09"},{"$f":"IF(DAY(AbrDom1)=1,IF(AND(YEAR(AbrDom1+6)=AnoDoCalendário,MONTH(AbrDom1+6)=4),AbrDom1+6,\"\"),IF(AND(YEAR(AbrDom1+13)=AnoDoCalendário,MONTH(AbrDom1+13)=4),AbrDom1+13,\"\"))","v":"2020-04-10"},{"$f":"IF(DAY(AbrDom1)=1,IF(AND(YEAR(AbrDom1+7)=AnoDoCalendário,MONTH(AbrDom1+7)=4),AbrDom1+7,\"\"),IF(AND(YEAR(AbrDom1+14)=AnoDoCalendário,MONTH(AbrDom1+14)=4),AbrDom1+14,\"\"))","v":"2020-04-11"}]
[null,null,{"$f":"IF(DAY(MarDom1)=1,IF(AND(YEAR(MarDom1+8)=AnoDoCalendário,MONTH(MarDom1+8)=3),MarDom1+8,\"\"),IF(AND(YEAR(MarDom1+15)=AnoDoCalendário,MONTH(MarDom1+15)=3),MarDom1+15,\"\"))","v":"2020-03-15"},{"$f":"IF(DAY(MarDom1)=1,IF(AND(YEAR(MarDom1+9)=AnoDoCalendário,MONTH(MarDom1+9)=3),MarDom1+9,\"\"),IF(AND(YEAR(MarDom1+16)=AnoDoCalendário,MONTH(MarDom1+16)=3),MarDom1+16,\"\"))","v":"2020-03-16"},{"$f":"IF(DAY(MarDom1)=1,IF(AND(YEAR(MarDom1+10)=AnoDoCalendário,MONTH(MarDom1+10)=3),MarDom1+10,\"\"),IF(AND(YEAR(MarDom1+17)=AnoDoCalendário,MONTH(MarDom1+17)=3),MarDom1+17,\"\"))","v":"2020-03-17"},{"$f":"IF(DAY(MarDom1)=1,IF(AND(YEAR(MarDom1+11)=AnoDoCalendário,MONTH(MarDom1+11)=3),MarDom1+11,\"\"),IF(AND(YEAR(MarDom1+18)=AnoDoCalendário,MONTH(MarDom1+18)=3),MarDom1+18,\"\"))","v":"2020-03-18"},{"$f":"IF(DAY(MarDom1)=1,IF(AND(YEAR(MarDom1+12)=AnoDoCalendário,MONTH(MarDom1+12)=3),MarDom1+12,\"\"),IF(AND(YEAR(MarDom1+19)=AnoDoCalendário,MONTH(MarDom1+19)=3),MarDom1+19,\"\"))","v":"2020-03-19"},{"$f":"IF(DAY(MarDom1)=1,IF(AND(YEAR(MarDom1+13)=AnoDoCalendário,MONTH(MarDom1+13)=3),MarDom1+13,\"\"),IF(AND(YEAR(MarDom1+20)=AnoDoCalendário,MONTH(MarDom1+20)=3),MarDom1+20,\"\"))","v":"2020-03-20"},{"$f":"IF(DAY(MarDom1)=1,IF(AND(YEAR(MarDom1+14)=AnoDoCalendário,MONTH(MarDom1+14)=3),MarDom1+14,\"\"),IF(AND(YEAR(MarDom1+21)=AnoDoCalendário,MONTH(MarDom1+21)=3),MarDom1+21,\"\"))","v":"2020-03-21"},null,{"$f":"IF(DAY(AbrDom1)=1,IF(AND(YEAR(AbrDom1+8)=AnoDoCalendário,MONTH(AbrDom1+8)=4),AbrDom1+8,\"\"),IF(AND(YEAR(AbrDom1+15)=AnoDoCalendário,MONTH(AbrDom1+15)=4),AbrDom1+15,\"\"))","v":"2020-04-12"},{"$f":"IF(DAY(AbrDom1)=1,IF(AND(YEAR(AbrDom1+9)=AnoDoCalendário,MONTH(AbrDom1+9)=4),AbrDom1+9,\"\"),IF(AND(YEAR(AbrDom1+16)=AnoDoCalendário,MONTH(AbrDom1+16)=4),AbrDom1+16,\"\"))","v":"2020-04-13"},{"$f":"IF(DAY(AbrDom1)=1,IF(AND(YEAR(AbrDom1+10)=AnoDoCalendário,MONTH(AbrDom1+10)=4),AbrDom1+10,\"\"),IF(AND(YEAR(AbrDom1+17)=AnoDoCalendário,MONTH(AbrDom1+17)=4),AbrDom1+17,\"\"))","v":"2020-04-14"},{"$f":"IF(DAY(AbrDom1)=1,IF(AND(YEAR(AbrDom1+11)=AnoDoCalendário,MONTH(AbrDom1+11)=4),AbrDom1+11,\"\"),IF(AND(YEAR(AbrDom1+18)=AnoDoCalendário,MONTH(AbrDom1+18)=4),AbrDom1+18,\"\"))","v":"2020-04-15"},{"$f":"IF(DAY(AbrDom1)=1,IF(AND(YEAR(AbrDom1+12)=AnoDoCalendário,MONTH(AbrDom1+12)=4),AbrDom1+12,\"\"),IF(AND(YEAR(AbrDom1+19)=AnoDoCalendário,MONTH(AbrDom1+19)=4),AbrDom1+19,\"\"))","v":"2020-04-16"},{"$f":"IF(DAY(AbrDom1)=1,IF(AND(YEAR(AbrDom1+13)=AnoDoCalendário,MONTH(AbrDom1+13)=4),AbrDom1+13,\"\"),IF(AND(YEAR(AbrDom1+20)=AnoDoCalendário,MONTH(AbrDom1+20)=4),AbrDom1+20,\"\"))","v":"2020-04-17"},{"$f":"IF(DAY(AbrDom1)=1,IF(AND(YEAR(AbrDom1+14)=AnoDoCalendário,MONTH(AbrDom1+14)=4),AbrDom1+14,\"\"),IF(AND(YEAR(AbrDom1+21)=AnoDoCalendário,MONTH(AbrDom1+21)=4),AbrDom1+21,\"\"))","v":"2020-04-18"}]
[null,null,{"$f":"IF(DAY(MarDom1)=1,IF(AND(YEAR(MarDom1+15)=AnoDoCalendário,MONTH(MarDom1+15)=3),MarDom1+15,\"\"),IF(AND(YEAR(MarDom1+22)=AnoDoCalendário,MONTH(MarDom1+22)=3),MarDom1+22,\"\"))","v":"2020-03-22"},{"$f":"IF(DAY(MarDom1)=1,IF(AND(YEAR(MarDom1+16)=AnoDoCalendário,MONTH(MarDom1+16)=3),MarDom1+16,\"\"),IF(AND(YEAR(MarDom1+23)=AnoDoCalendário,MONTH(MarDom1+23)=3),MarDom1+23,\"\"))","v":"2020-03-23"},{"$f":"IF(DAY(MarDom1)=1,IF(AND(YEAR(MarDom1+17)=AnoDoCalendário,MONTH(MarDom1+17)=3),MarDom1+17,\"\"),IF(AND(YEAR(MarDom1+24)=AnoDoCalendário,MONTH(MarDom1+24)=3),MarDom1+24,\"\"))","v":"2020-03-24"},{"$f":"IF(DAY(MarDom1)=1,IF(AND(YEAR(MarDom1+18)=AnoDoCalendário,MONTH(MarDom1+18)=3),MarDom1+18,\"\"),IF(AND(YEAR(MarDom1+25)=AnoDoCalendário,MONTH(MarDom1+25)=3),MarDom1+25,\"\"))","v":"2020-03-25"},{"$f":"IF(DAY(MarDom1)=1,IF(AND(YEAR(MarDom1+19)=AnoDoCalendário,MONTH(MarDom1+19)=3),MarDom1+19,\"\"),IF(AND(YEAR(MarDom1+26)=AnoDoCalendário,MONTH(MarDom1+26)=3),MarDom1+26,\"\"))","v":"2020-03-26"},{"$f":"IF(DAY(MarDom1)=1,IF(AND(YEAR(MarDom1+20)=AnoDoCalendário,MONTH(MarDom1+20)=3),MarDom1+20,\"\"),IF(AND(YEAR(MarDom1+27)=AnoDoCalendário,MONTH(MarDom1+27)=3),MarDom1+27,\"\"))","v":"2020-03-27"},{"$f":"IF(DAY(MarDom1)=1,IF(AND(YEAR(MarDom1+21)=AnoDoCalendário,MONTH(MarDom1+21)=3),MarDom1+21,\"\"),IF(AND(YEAR(MarDom1+28)=AnoDoCalendário,MONTH(MarDom1+28)=3),MarDom1+28,\"\"))","v":"2020-03-28"},null,{"$f":"IF(DAY(AbrDom1)=1,IF(AND(YEAR(AbrDom1+15)=AnoDoCalendário,MONTH(AbrDom1+15)=4),AbrDom1+15,\"\"),IF(AND(YEAR(AbrDom1+22)=AnoDoCalendário,MONTH(AbrDom1+22)=4),AbrDom1+22,\"\"))","v":"2020-04-19"},{"$f":"IF(DAY(AbrDom1)=1,IF(AND(YEAR(AbrDom1+16)=AnoDoCalendário,MONTH(AbrDom1+16)=4),AbrDom1+16,\"\"),IF(AND(YEAR(AbrDom1+23)=AnoDoCalendário,MONTH(AbrDom1+23)=4),AbrDom1+23,\"\"))","v":"2020-04-20"},{"$f":"IF(DAY(AbrDom1)=1,IF(AND(YEAR(AbrDom1+17)=AnoDoCalendário,MONTH(AbrDom1+17)=4),AbrDom1+17,\"\"),IF(AND(YEAR(AbrDom1+24)=AnoDoCalendário,MONTH(AbrDom1+24)=4),AbrDom1+24,\"\"))","v":"2020-04-21"},{"$f":"IF(DAY(AbrDom1)=1,IF(AND(YEAR(AbrDom1+18)=AnoDoCalendário,MONTH(AbrDom1+18)=4),AbrDom1+18,\"\"),IF(AND(YEAR(AbrDom1+25)=AnoDoCalendário,MONTH(AbrDom1+25)=4),AbrDom1+25,\"\"))","v":"2020-04-22"},{"$f":"IF(DAY(AbrDom1)=1,IF(AND(YEAR(AbrDom1+19)=AnoDoCalendário,MONTH(AbrDom1+19)=4),AbrDom1+19,\"\"),IF(AND(YEAR(AbrDom1+26)=AnoDoCalendário,MONTH(AbrDom1+26)=4),AbrDom1+26,\"\"))","v":"2020-04-23"},{"$f":"IF(DAY(AbrDom1)=1,IF(AND(YEAR(AbrDom1+20)=AnoDoCalendário,MONTH(AbrDom1+20)=4),AbrDom1+20,\"\"),IF(AND(YEAR(AbrDom1+27)=AnoDoCalendário,MONTH(AbrDom1+27)=4),AbrDom1+27,\"\"))","v":"2020-04-24"},{"$f":"IF(DAY(AbrDom1)=1,IF(AND(YEAR(AbrDom1+21)=AnoDoCalendário,MONTH(AbrDom1+21)=4),AbrDom1+21,\"\"),IF(AND(YEAR(AbrDom1+28)=AnoDoCalendário,MONTH(AbrDom1+28)=4),AbrDom1+28,\"\"))","v":"2020-04-25"}]
[null,null,{"$f":"IF(DAY(MarDom1)=1,IF(AND(YEAR(MarDom1+22)=AnoDoCalendário,MONTH(MarDom1+22)=3),MarDom1+22,\"\"),IF(AND(YEAR(MarDom1+29)=AnoDoCalendário,MONTH(MarDom1+29)=3),MarDom1+29,\"\"))","v":"2020-03-29"},{"$f":"IF(DAY(MarDom1)=1,IF(AND(YEAR(MarDom1+23)=AnoDoCalendário,MONTH(MarDom1+23)=3),MarDom1+23,\"\"),IF(AND(YEAR(MarDom1+30)=AnoDoCalendário,MONTH(MarDom1+30)=3),MarDom1+30,\"\"))","v":"2020-03-30"},{"$f":"IF(DAY(MarDom1)=1,IF(AND(YEAR(MarDom1+24)=AnoDoCalendário,MONTH(MarDom1+24)=3),MarDom1+24,\"\"),IF(AND(YEAR(MarDom1+31)=AnoDoCalendário,MONTH(MarDom1+31)=3),MarDom1+31,\"\"))","v":"2020-03-31"},{"$f":"IF(DAY(MarDom1)=1,IF(AND(YEAR(MarDom1+25)=AnoDoCalendário,MONTH(MarDom1+25)=3),MarDom1+25,\"\"),IF(AND(YEAR(MarDom1+32)=AnoDoCalendário,MONTH(MarDom1+32)=3),MarDom1+32,\"\"))","v":""},{"$f":"IF(DAY(MarDom1)=1,IF(AND(YEAR(MarDom1+26)=AnoDoCalendário,MONTH(MarDom1+26)=3),MarDom1+26,\"\"),IF(AND(YEAR(MarDom1+33)=AnoDoCalendário,MONTH(MarDom1+33)=3),MarDom1+33,\"\"))","v":""},{"$f":"IF(DAY(MarDom1)=1,IF(AND(YEAR(MarDom1+27)=AnoDoCalendário,MONTH(MarDom1+27)=3),MarDom1+27,\"\"),IF(AND(YEAR(MarDom1+34)=AnoDoCalendário,MONTH(MarDom1+34)=3),MarDom1+34,\"\"))","v":""},{"$f":"IF(DAY(MarDom1)=1,IF(AND(YEAR(MarDom1+28)=AnoDoCalendário,MONTH(MarDom1+28)=3),MarDom1+28,\"\"),IF(AND(YEAR(MarDom1+35)=AnoDoCalendário,MONTH(MarDom1+35)=3),MarDom1+35,\"\"))","v":""},null,{"$f":"IF(DAY(AbrDom1)=1,IF(AND(YEAR(AbrDom1+22)=AnoDoCalendário,MONTH(AbrDom1+22)=4),AbrDom1+22,\"\"),IF(AND(YEAR(AbrDom1+29)=AnoDoCalendário,MONTH(AbrDom1+29)=4),AbrDom1+29,\"\"))","v":"2020-04-26"},{"$f":"IF(DAY(AbrDom1)=1,IF(AND(YEAR(AbrDom1+23)=AnoDoCalendário,MONTH(AbrDom1+23)=4),AbrDom1+23,\"\"),IF(AND(YEAR(AbrDom1+30)=AnoDoCalendário,MONTH(AbrDom1+30)=4),AbrDom1+30,\"\"))","v":"2020-04-27"},{"$f":"IF(DAY(AbrDom1)=1,IF(AND(YEAR(AbrDom1+24)=AnoDoCalendário,MONTH(AbrDom1+24)=4),AbrDom1+24,\"\"),IF(AND(YEAR(AbrDom1+31)=AnoDoCalendário,MONTH(AbrDom1+31)=4),AbrDom1+31,\"\"))","v":"2020-04-28"},{"$f":"IF(DAY(AbrDom1)=1,IF(AND(YEAR(AbrDom1+25)=AnoDoCalendário,MONTH(AbrDom1+25)=4),AbrDom1+25,\"\"),IF(AND(YEAR(AbrDom1+32)=AnoDoCalendário,MONTH(AbrDom1+32)=4),AbrDom1+32,\"\"))","v":"2020-04-29"},{"$f":"IF(DAY(AbrDom1)=1,IF(AND(YEAR(AbrDom1+26)=AnoDoCalendário,MONTH(AbrDom1+26)=4),AbrDom1+26,\"\"),IF(AND(YEAR(AbrDom1+33)=AnoDoCalendário,MONTH(AbrDom1+33)=4),AbrDom1+33,\"\"))","v":"2020-04-30"},{"$f":"IF(DAY(AbrDom1)=1,IF(AND(YEAR(AbrDom1+27)=AnoDoCalendário,MONTH(AbrDom1+27)=4),AbrDom1+27,\"\"),IF(AND(YEAR(AbrDom1+34)=AnoDoCalendário,MONTH(AbrDom1+34)=4),AbrDom1+34,\"\"))","v":""},{"$f":"IF(DAY(AbrDom1)=1,IF(AND(YEAR(AbrDom1+28)=AnoDoCalendário,MONTH(AbrDom1+28)=4),AbrDom1+28,\"\"),IF(AND(YEAR(AbrDom1+35)=AnoDoCalendário,MONTH(AbrDom1+35)=4),AbrDom1+35,\"\"))","v":""}]
[null,null,{"$f":"IF(DAY(MarDom1)=1,IF(AND(YEAR(MarDom1+29)=AnoDoCalendário,MONTH(MarDom1+29)=3),MarDom1+29,\"\"),IF(AND(YEAR(MarDom1+36)=AnoDoCalendário,MONTH(MarDom1+36)=3),MarDom1+36,\"\"))","v":""},{"$f":"IF(DAY(MarDom1)=1,IF(AND(YEAR(MarDom1+30)=AnoDoCalendário,MONTH(MarDom1+30)=3),MarDom1+30,\"\"),IF(AND(YEAR(MarDom1+37)=AnoDoCalendário,MONTH(MarDom1+37)=3),MarDom1+37,\"\"))","v":""},{"$f":"IF(DAY(MarDom1)=1,IF(AND(YEAR(MarDom1+31)=AnoDoCalendário,MONTH(MarDom1+31)=3),MarDom1+31,\"\"),IF(AND(YEAR(MarDom1+38)=AnoDoCalendário,MONTH(MarDom1+38)=3),MarDom1+38,\"\"))","v":""},{"$f":"IF(DAY(MarDom1)=1,IF(AND(YEAR(MarDom1+32)=AnoDoCalendário,MONTH(MarDom1+32)=3),MarDom1+32,\"\"),IF(AND(YEAR(MarDom1+39)=AnoDoCalendário,MONTH(MarDom1+39)=3),MarDom1+39,\"\"))","v":""},{"$f":"IF(DAY(MarDom1)=1,IF(AND(YEAR(MarDom1+33)=AnoDoCalendário,MONTH(MarDom1+33)=3),MarDom1+33,\"\"),IF(AND(YEAR(MarDom1+40)=AnoDoCalendário,MONTH(MarDom1+40)=3),MarDom1+40,\"\"))","v":""},{"$f":"IF(DAY(MarDom1)=1,IF(AND(YEAR(MarDom1+34)=AnoDoCalendário,MONTH(MarDom1+34)=3),MarDom1+34,\"\"),IF(AND(YEAR(MarDom1+41)=AnoDoCalendário,MONTH(MarDom1+41)=3),MarDom1+41,\"\"))","v":""},{"$f":"IF(DAY(MarDom1)=1,IF(AND(YEAR(MarDom1+35)=AnoDoCalendário,MONTH(MarDom1+35)=3),MarDom1+35,\"\"),IF(AND(YEAR(MarDom1+42)=AnoDoCalendário,MONTH(MarDom1+42)=3),MarDom1+42,\"\"))","v":""},null,{"$f":"IF(DAY(AbrDom1)=1,IF(AND(YEAR(AbrDom1+29)=AnoDoCalendário,MONTH(AbrDom1+29)=4),AbrDom1+29,\"\"),IF(AND(YEAR(AbrDom1+36)=AnoDoCalendário,MONTH(AbrDom1+36)=4),AbrDom1+36,\"\"))","v":""},{"$f":"IF(DAY(AbrDom1)=1,IF(AND(YEAR(AbrDom1+30)=AnoDoCalendário,MONTH(AbrDom1+30)=4),AbrDom1+30,\"\"),IF(AND(YEAR(AbrDom1+37)=AnoDoCalendário,MONTH(AbrDom1+37)=4),AbrDom1+37,\"\"))","v":""},{"$f":"IF(DAY(AbrDom1)=1,IF(AND(YEAR(AbrDom1+31)=AnoDoCalendário,MONTH(AbrDom1+31)=4),AbrDom1+31,\"\"),IF(AND(YEAR(AbrDom1+38)=AnoDoCalendário,MONTH(AbrDom1+38)=4),AbrDom1+38,\"\"))","v":""},{"$f":"IF(DAY(AbrDom1)=1,IF(AND(YEAR(AbrDom1+32)=AnoDoCalendário,MONTH(AbrDom1+32)=4),AbrDom1+32,\"\"),IF(AND(YEAR(AbrDom1+39)=AnoDoCalendário,MONTH(AbrDom1+39)=4),AbrDom1+39,\"\"))","v":""},{"$f":"IF(DAY(AbrDom1)=1,IF(AND(YEAR(AbrDom1+33)=AnoDoCalendário,MONTH(AbrDom1+33)=4),AbrDom1+33,\"\"),IF(AND(YEAR(AbrDom1+40)=AnoDoCalendário,MONTH(AbrDom1+40)=4),AbrDom1+40,\"\"))","v":""},{"$f":"IF(DAY(AbrDom1)=1,IF(AND(YEAR(AbrDom1+34)=AnoDoCalendário,MONTH(AbrDom1+34)=4),AbrDom1+34,\"\"),IF(AND(YEAR(AbrDom1+41)=AnoDoCalendário,MONTH(AbrDom1+41)=4),AbrDom1+41,\"\"))","v":""},{"$f":"IF(DAY(AbrDom1)=1,IF(AND(YEAR(AbrDom1+35)=AnoDoCalendário,MONTH(AbrDom1+35)=4),AbrDom1+35,\"\"),IF(AND(YEAR(AbrDom1+42)=AnoDoCalendário,MONTH(AbrDom1+42)=4),AbrDom1+42,\"\"))","v":""}]
[]
["O rótulo de Maio está na célula C21 e o de Junho na célula K21",null,"MAIO",{"$nulls":7},"JUNHO"]
["O tabela do calendário de Maio está nas células C22 a I28 e a de Junho nas células K22 a Q28. A próxima instrução está na célula A30",null,"DOM","SEG","TER","QUA","QUI","SEX","SÁB",null,"DOM","SEG","TER","QUA","QUI","SEX","SÁB"]
[null,null,{"$f":"IF(DAY(MaiDom1)=1,\"\",IF(AND(YEAR(MaiDom1+1)=AnoDoCalendário,MONTH(MaiDom1+1)=5),MaiDom1+1,\"\"))","v":""},{"$f":"IF(DAY(MaiDom1)=1,\"\",IF(AND(YEAR(MaiDom1+2)=AnoDoCalendário,MONTH(MaiDom1+2)=5),MaiDom1+2,\"\"))","v":""},{"$f":"IF(DAY(MaiDom1)=1,\"\",IF(AND(YEAR(MaiDom1+3)=AnoDoCalendário,MONTH(MaiDom1+3)=5),MaiDom1+3,\"\"))","v":""},{"$f":"IF(DAY(MaiDom1)=1,\"\",IF(AND(YEAR(MaiDom1+4)=AnoDoCalendário,MONTH(MaiDom1+4)=5),MaiDom1+4,\"\"))","v":""},{"$f":"IF(DAY(MaiDom1)=1,\"\",IF(AND(YEAR(MaiDom1+5)=AnoDoCalendário,MONTH(MaiDom1+5)=5),MaiDom1+5,\"\"))","v":""},{"$f":"IF(DAY(MaiDom1)=1,\"\",IF(AND(YEAR(MaiDom1+6)=AnoDoCalendário,MONTH(MaiDom1+6)=5),MaiDom1+6,\"\"))","v":"2020-05-01"},{"$f":"IF(DAY(MaiDom1)=1,IF(AND(YEAR(MaiDom1)=AnoDoCalendário,MONTH(MaiDom1)=5),MaiDom1,\"\"),IF(AND(YEAR(MaiDom1+7)=AnoDoCalendário,MONTH(MaiDom1+7)=5),MaiDom1+7,\"\"))","v":"2020-05-02"},null,{"$f":"IF(DAY(JunDom1)=1,\"\",IF(AND(YEAR(JunDom1+1)=AnoDoCalendário,MONTH(JunDom1+1)=6),JunDom1+1,\"\"))","v":""},{"$f":"IF(DAY(JunDom1)=1,\"\",IF(AND(YEAR(JunDom1+2)=AnoDoCalendário,MONTH(JunDom1+2)=6),JunDom1+2,\"\"))","v":"2020-06-01"},{"$f":"IF(DAY(JunDom1)=1,\"\",IF(AND(YEAR(JunDom1+3)=AnoDoCalendário,MONTH(JunDom1+3)=6),JunDom1+3,\"\"))","v":"2020-06-02"},{"$f":"IF(DAY(JunDom1)=1,\"\",IF(AND(YEAR(JunDom1+4)=AnoDoCalendário,MONTH(JunDom1+4)=6),JunDom1+4,\"\"))","v":"2020-06-03"},{"$f":"IF(DAY(JunDom1)=1,\"\",IF(AND(YEAR(JunDom1+5)=AnoDoCalendário,MONTH(JunDom1+5)=6),JunDom1+5,\"\"))","v":"2020-06-04"},{"$f":"IF(DAY(JunDom1)=1,\"\",IF(AND(YEAR(JunDom1+6)=AnoDoCalendário,MONTH(JunDom1+6)=6),JunDom1+6,\"\"))","v":"2020-06-05"},{"$f":"IF(DAY(JunDom1)=1,IF(AND(YEAR(JunDom1)=AnoDoCalendário,MONTH(JunDom1)=6),JunDom1,\"\"),IF(AND(YEAR(JunDom1+7)=AnoDoCalendário,MONTH(JunDom1+7)=6),JunDom1+7,\"\"))","v":"2020-06-06"}]
[null,null,{"$f":"IF(DAY(MaiDom1)=1,IF(AND(YEAR(MaiDom1+1)=AnoDoCalendário,MONTH(MaiDom1+1)=5),MaiDom1+1,\"\"),IF(AND(YEAR(MaiDom1+8)=AnoDoCalendário,MONTH(MaiDom1+8)=5),MaiDom1+8,\"\"))","v":"2020-05-03"},{"$f":"IF(DAY(MaiDom1)=1,IF(AND(YEAR(MaiDom1+2)=AnoDoCalendário,MONTH(MaiDom1+2)=5),MaiDom1+2,\"\"),IF(AND(YEAR(MaiDom1+9)=AnoDoCalendário,MONTH(MaiDom1+9)=5),MaiDom1+9,\"\"))","v":"2020-05-04"},{"$f":"IF(DAY(MaiDom1)=1,IF(AND(YEAR(MaiDom1+3)=AnoDoCalendário,MONTH(MaiDom1+3)=5),MaiDom1+3,\"\"),IF(AND(YEAR(MaiDom1+10)=AnoDoCalendário,MONTH(MaiDom1+10)=5),MaiDom1+10,\"\"))","v":"2020-05-05"},{"$f":"IF(DAY(MaiDom1)=1,IF(AND(YEAR(MaiDom1+4)=AnoDoCalendário,MONTH(MaiDom1+4)=5),MaiDom1+4,\"\"),IF(AND(YEAR(MaiDom1+11)=AnoDoCalendário,MONTH(MaiDom1+11)=5),MaiDom1+11,\"\"))","v":"2020-05-06"},{"$f":"IF(DAY(MaiDom1)=1,IF(AND(YEAR(MaiDom1+5)=AnoDoCalendário,MONTH(MaiDom1+5)=5),MaiDom1+5,\"\"),IF(AND(YEAR(MaiDom1+12)=AnoDoCalendário,MONTH(MaiDom1+12)=5),MaiDom1+12,\"\"))","v":"2020-05-07"},{"$f":"IF(DAY(MaiDom1)=1,IF(AND(YEAR(MaiDom1+6)=AnoDoCalendário,MONTH(MaiDom1+6)=5),MaiDom1+6,\"\"),IF(AND(YEAR(MaiDom1+13)=AnoDoCalendário,MONTH(MaiDom1+13)=5),MaiDom1+13,\"\"))","v":"2020-05-08"},{"$f":"IF(DAY(MaiDom1)=1,IF(AND(YEAR(MaiDom1+7)=AnoDoCalendário,MONTH(MaiDom1+7)=5),MaiDom1+7,\"\"),IF(AND(YEAR(MaiDom1+14)=AnoDoCalendário,MONTH(MaiDom1+14)=5),MaiDom1+14,\"\"))","v":"2020-05-09"},null,{"$f":"IF(DAY(JunDom1)=1,IF(AND(YEAR(JunDom1+1)=AnoDoCalendário,MONTH(JunDom1+1)=6),JunDom1+1,\"\"),IF(AND(YEAR(JunDom1+8)=AnoDoCalendário,MONTH(JunDom1+8)=6),JunDom1+8,\"\"))","v":"2020-06-07"},{"$f":"IF(DAY(JunDom1)=1,IF(AND(YEAR(JunDom1+2)=AnoDoCalendário,MONTH(JunDom1+2)=6),JunDom1+2,\"\"),IF(AND(YEAR(JunDom1+9)=AnoDoCalendário,MONTH(JunDom1+9)=6),JunDom1+9,\"\"))","v":"2020-06-08"},{"$f":"IF(DAY(JunDom1)=1,IF(AND(YEAR(JunDom1+3)=AnoDoCalendário,MONTH(JunDom1+3)=6),JunDom1+3,\"\"),IF(AND(YEAR(JunDom1+10)=AnoDoCalendário,MONTH(JunDom1+10)=6),JunDom1+10,\"\"))","v":"2020-06-09"},{"$f":"IF(DAY(JunDom1)=1,IF(AND(YEAR(JunDom1+4)=AnoDoCalendário,MONTH(JunDom1+4)=6),JunDom1+4,\"\"),IF(AND(YEAR(JunDom1+11)=AnoDoCalendário,MONTH(JunDom1+11)=6),JunDom1+11,\"\"))","v":"2020-06-10"},{"$f":"IF(DAY(JunDom1)=1,IF(AND(YEAR(JunDom1+5)=AnoDoCalendário,MONTH(JunDom1+5)=6),JunDom1+5,\"\"),IF(AND(YEAR(JunDom1+12)=AnoDoCalendário,MONTH(JunDom1+12)=6),JunDom1+12,\"\"))","v":"2020-06-11"},{"$f":"IF(DAY(JunDom1)=1,IF(AND(YEAR(JunDom1+6)=AnoDoCalendário,MONTH(JunDom1+6)=6),JunDom1+6,\"\"),IF(AND(YEAR(JunDom1+13)=AnoDoCalendário,MONTH(JunDom1+13)=6),JunDom1+13,\"\"))","v":"2020-06-12"},{"$f":"IF(DAY(JunDom1)=1,IF(AND(YEAR(JunDom1+7)=AnoDoCalendário,MONTH(JunDom1+7)=6),JunDom1+7,\"\"),IF(AND(YEAR(JunDom1+14)=AnoDoCalendário,MONTH(JunDom1+14)=6),JunDom1+14,\"\"))","v":"2020-06-13"}]
[null,null,{"$f":"IF(DAY(MaiDom1)=1,IF(AND(YEAR(MaiDom1+8)=AnoDoCalendário,MONTH(MaiDom1+8)=5),MaiDom1+8,\"\"),IF(AND(YEAR(MaiDom1+15)=AnoDoCalendário,MONTH(MaiDom1+15)=5),MaiDom1+15,\"\"))","v":"2020-05-10"},{"$f":"IF(DAY(MaiDom1)=1,IF(AND(YEAR(MaiDom1+9)=AnoDoCalendário,MONTH(MaiDom1+9)=5),MaiDom1+9,\"\"),IF(AND(YEAR(MaiDom1+16)=AnoDoCalendário,MONTH(MaiDom1+16)=5),MaiDom1+16,\"\"))","v":"2020-05-11"},{"$f":"IF(DAY(MaiDom1)=1,IF(AND(YEAR(MaiDom1+10)=AnoDoCalendário,MONTH(MaiDom1+10)=5),MaiDom1+10,\"\"),IF(AND(YEAR(MaiDom1+17)=AnoDoCalendário,MONTH(MaiDom1+17)=5),MaiDom1+17,\"\"))","v":"2020-05-12"},{"$f":"IF(DAY(MaiDom1)=1,IF(AND(YEAR(MaiDom1+11)=AnoDoCalendário,MONTH(MaiDom1+11)=5),MaiDom1+11,\"\"),IF(AND(YEAR(MaiDom1+18)=AnoDoCalendário,MONTH(MaiDom1+18)=5),MaiDom1+18,\"\"))","v":"2020-05-13"},{"$f":"IF(DAY(MaiDom1)=1,IF(AND(YEAR(MaiDom1+12)=AnoDoCalendário,MONTH(MaiDom1+12)=5),MaiDom1+12,\"\"),IF(AND(YEAR(MaiDom1+19)=AnoDoCalendário,MONTH(MaiDom1+19)=5),MaiDom1+19,\"\"))","v":"2020-05-14"},{"$f":"IF(DAY(MaiDom1)=1,IF(AND(YEAR(MaiDom1+13)=AnoDoCalendário,MONTH(MaiDom1+13)=5),MaiDom1+13,\"\"),IF(AND(YEAR(MaiDom1+20)=AnoDoCalendário,MONTH(MaiDom1+20)=5),MaiDom1+20,\"\"))","v":"2020-05-15"},{"$f":"IF(DAY(MaiDom1)=1,IF(AND(YEAR(MaiDom1+14)=AnoDoCalendário,MONTH(MaiDom1+14)=5),MaiDom1+14,\"\"),IF(AND(YEAR(MaiDom1+21)=AnoDoCalendário,MONTH(MaiDom1+21)=5),MaiDom1+21,\"\"))","v":"2020-05-16"},null,{"$f":"IF(DAY(JunDom1)=1,IF(AND(YEAR(JunDom1+8)=AnoDoCalendário,MONTH(JunDom1+8)=6),JunDom1+8,\"\"),IF(AND(YEAR(JunDom1+15)=AnoDoCalendário,MONTH(JunDom1+15)=6),JunDom1+15,\"\"))","v":"2020-06-14"},{"$f":"IF(DAY(JunDom1)=1,IF(AND(YEAR(JunDom1+9)=AnoDoCalendário,MONTH(JunDom1+9)=6),JunDom1+9,\"\"),IF(AND(YEAR(JunDom1+16)=AnoDoCalendário,MONTH(JunDom1+16)=6),JunDom1+16,\"\"))","v":"2020-06-15"},{"$f":"IF(DAY(JunDom1)=1,IF(AND(YEAR(JunDom1+10)=AnoDoCalendário,MONTH(JunDom1+10)=6),JunDom1+10,\"\"),IF(AND(YEAR(JunDom1+17)=AnoDoCalendário,MONTH(JunDom1+17)=6),JunDom1+17,\"\"))","v":"2020-06-16"},{"$f":"IF(DAY(JunDom1)=1,IF(AND(YEAR(JunDom1+11)=AnoDoCalendário,MONTH(JunDom1+11)=6),JunDom1+11,\"\"),IF(AND(YEAR(JunDom1+18)=AnoDoCalendário,MONTH(JunDom1+18)=6),JunDom1+18,\"\"))","v":"2020-06-17"},{"$f":"IF(DAY(JunDom1)=1,IF(AND(YEAR(JunDom1+12)=AnoDoCalendário,MONTH(JunDom1+12)=6),JunDom1+12,\"\"),IF(AND(YEAR(JunDom1+19)=AnoDoCalendário,MONTH(JunDom1+19)=6),JunDom1+19,\"\"))","v":"2020-06-18"},{"$f":"IF(DAY(JunDom1)=1,IF(AND(YEAR(JunDom1+13)=AnoDoCalendário,MONTH(JunDom1+13)=6),JunDom1+13,\"\"),IF(AND(YEAR(JunDom1+20)=AnoDoCalendário,MONTH(JunDom1+20)=6),JunDom1+20,\"\"))","v":"2020-06-19"},{"$f":"IF(DAY(JunDom1)=1,IF(AND(YEAR(JunDom1+14)=AnoDoCalendário,MONTH(JunDom1+14)=6),JunDom1+14,\"\"),IF(AND(YEAR(JunDom1+21)=AnoDoCalendário,MONTH(JunDom1+21)=6),JunDom1+21,\"\"))","v":"2020-06-20"}]
[null,null,{"$f":"IF(DAY(MaiDom1)=1,IF(AND(YEAR(MaiDom1+15)=AnoDoCalendário,MONTH(MaiDom1+15)=5),MaiDom1+15,\"\"),IF(AND(YEAR(MaiDom1+22)=AnoDoCalendário,MONTH(MaiDom1+22)=5),MaiDom1+22,\"\"))","v":"2020-05-17"},{"$f":"IF(DAY(MaiDom1)=1,IF(AND(YEAR(MaiDom1+16)=AnoDoCalendário,MONTH(MaiDom1+16)=5),MaiDom1+16,\"\"),IF(AND(YEAR(MaiDom1+23)=AnoDoCalendário,MONTH(MaiDom1+23)=5),MaiDom1+23,\"\"))","v":"2020-05-18"},{"$f":"IF(DAY(MaiDom1)=1,IF(AND(YEAR(MaiDom1+17)=AnoDoCalendário,MONTH(MaiDom1+17)=5),MaiDom1+17,\"\"),IF(AND(YEAR(MaiDom1+24)=AnoDoCalendário,MONTH(MaiDom1+24)=5),MaiDom1+24,\"\"))","v":"2020-05-19"},{"$f":"IF(DAY(MaiDom1)=1,IF(AND(YEAR(MaiDom1+18)=AnoDoCalendário,MONTH(MaiDom1+18)=5),MaiDom1+18,\"\"),IF(AND(YEAR(MaiDom1+25)=AnoDoCalendário,MONTH(MaiDom1+25)=5),MaiDom1+25,\"\"))","v":"2020-05-20"},{"$f":"IF(DAY(MaiDom1)=1,IF(AND(YEAR(MaiDom1+19)=AnoDoCalendário,MONTH(MaiDom1+19)=5),MaiDom1+19,\"\"),IF(AND(YEAR(MaiDom1+26)=AnoDoCalendário,MONTH(MaiDom1+26)=5),MaiDom1+26,\"\"))","v":"2020-05-21"},{"$f":"IF(DAY(MaiDom1)=1,IF(AND(YEAR(MaiDom1+20)=AnoDoCalendário,MONTH(MaiDom1+20)=5),MaiDom1+20,\"\"),IF(AND(YEAR(MaiDom1+27)=AnoDoCalendário,MONTH(MaiDom1+27)=5),MaiDom1+27,\"\"))","v":"2020-05-22"},{"$f":"IF(DAY(MaiDom1)=1,IF(AND(YEAR(MaiDom1+21)=AnoDoCalendário,MONTH(MaiDom1+21)=5),MaiDom1+21,\"\"),IF(AND(YEAR(MaiDom1+28)=AnoDoCalendário,MONTH(MaiDom1+28)=5),MaiDom1+28,\"\"))","v":"2020-05-23"},null,{"$f":"IF(DAY(JunDom1)=1,IF(AND(YEAR(JunDom1+15)=AnoDoCalendário,MONTH(JunDom1+15)=6),JunDom1+15,\"\"),IF(AND(YEAR(JunDom1+22)=AnoDoCalendário,MONTH(JunDom1+22)=6),JunDom1+22,\"\"))","v":"2020-06-21"},{"$f":"IF(DAY(JunDom1)=1,IF(AND(YEAR(JunDom1+16)=AnoDoCalendário,MONTH(JunDom1+16)=6),JunDom1+16,\"\"),IF(AND(YEAR(JunDom1+23)=AnoDoCalendário,MONTH(JunDom1+23)=6),JunDom1+23,\"\"))","v":"2020-06-22"},{"$f":"IF(DAY(JunDom1)=1,IF(AND(YEAR(JunDom1+17)=AnoDoCalendário,MONTH(JunDom1+17)=6),JunDom1+17,\"\"),IF(AND(YEAR(JunDom1+24)=AnoDoCalendário,MONTH(JunDom1+24)=6),JunDom1+24,\"\"))","v":"2020-06-23"},{"$f":"IF(DAY(JunDom1)=1,IF(AND(YEAR(JunDom1+18)=AnoDoCalendário,MONTH(JunDom1+18)=6),JunDom1+18,\"\"),IF(AND(YEAR(JunDom1+25)=AnoDoCalendário,MONTH(JunDom1+25)=6),JunDom1+25,\"\"))","v":"2020-06-24"},{"$f":"IF(DAY(JunDom1)=1,IF(AND(YEAR(JunDom1+19)=AnoDoCalendário,MONTH(JunDom1+19)=6),JunDom1+19,\"\"),IF(AND(YEAR(JunDom1+26)=AnoDoCalendário,MONTH(JunDom1+26)=6),JunDom1+26,\"\"))","v":"2020-06-25"},{"$f":"IF(DAY(JunDom1)=1,IF(AND(YEAR(JunDom1+20)=AnoDoCalendário,MONTH(JunDom1+20)=6),JunDom1+20,\"\"),IF(AND(YEAR(JunDom1+27)=AnoDoCalendário,MONTH(JunDom1+27)=6),JunDom1+27,\"\"))","v":"2020-06-26"},{"$f":"IF(DAY(JunDom1)=1,IF(AND(YEAR(JunDom1+21)=AnoDoCalendário,MONTH(JunDom1+21)=6),JunDom1+21,\"\"),IF(AND(YEAR(JunDom1+28)=AnoDoCalendário,MONTH(JunDom1+28)=6),JunDom1+28,\"\"))","v":"2020-06-27"}]
[null,null,{"$f":"IF(DAY(MaiDom1)=1,IF(AND(YEAR(MaiDom1+22)=AnoDoCalendário,MONTH(MaiDom1+22)=5),MaiDom1+22,\"\"),IF(AND(YEAR(MaiDom1+29)=AnoDoCalendário,MONTH(MaiDom1+29)=5),MaiDom1+29,\"\"))","v":"2020-05-24"},{"$f":"IF(DAY(MaiDom1)=1,IF(AND(YEAR(MaiDom1+23)=AnoDoCalendário,MONTH(MaiDom1+23)=5),MaiDom1+23,\"\"),IF(AND(YEAR(MaiDom1+30)=AnoDoCalendário,MONTH(MaiDom1+30)=5),MaiDom1+30,\"\"))","v":"2020-05-25"},{"$f":"IF(DAY(MaiDom1)=1,IF(AND(YEAR(MaiDom1+24)=AnoDoCalendário,MONTH(MaiDom1+24)=5),MaiDom1+24,\"\"),IF(AND(YEAR(MaiDom1+31)=AnoDoCalendário,MONTH(MaiDom1+31)=5),MaiDom1+31,\"\"))","v":"2020-05-26"},{"$f":"IF(DAY(MaiDom1)=1,IF(AND(YEAR(MaiDom1+25)=AnoDoCalendário,MONTH(MaiDom1+25)=5),MaiDom1+25,\"\"),IF(AND(YEAR(MaiDom1+32)=AnoDoCalendário,MONTH(MaiDom1+32)=5),MaiDom1+32,\"\"))","v":"2020-05-27"},{"$f":"IF(DAY(MaiDom1)=1,IF(AND(YEAR(MaiDom1+26)=AnoDoCalendário,MONTH(MaiDom1+26)=5),MaiDom1+26,\"\"),IF(AND(YEAR(MaiDom1+33)=AnoDoCalendário,MONTH(MaiDom1+33)=5),MaiDom1+33,\"\"))","v":"2020-05-28"},{"$f":"IF(DAY(MaiDom1)=1,IF(AND(YEAR(MaiDom1+27)=AnoDoCalendário,MONTH(MaiDom1+27)=5),MaiDom1+27,\"\"),IF(AND(YEAR(MaiDom1+34)=AnoDoCalendário,MONTH(MaiDom1+34)=5),MaiDom1+34,\"\"))","v":"2020-05-29"},{"$f":"IF(DAY(MaiDom1)=1,IF(AND(YEAR(MaiDom1+28)=AnoDoCalendário,MONTH(MaiDom1+28)=5),MaiDom1+28,\"\"),IF(AND(YEAR(MaiDom1+35)=AnoDoCalendário,MONTH(MaiDom1+35)=5),MaiDom1+35,\"\"))","v":"2020-05-30"},null,{"$f":"IF(DAY(JunDom1)=1,IF(AND(YEAR(JunDom1+22)=AnoDoCalendário,MONTH(JunDom1+22)=6),JunDom1+22,\"\"),IF(AND(YEAR(JunDom1+29)=AnoDoCalendário,MONTH(JunDom1+29)=6),JunDom1+29,\"\"))","v":"2020-06-28"},{"$f":"IF(DAY(JunDom1)=1,IF(AND(YEAR(JunDom1+23)=AnoDoCalendário,MONTH(JunDom1+23)=6),JunDom1+23,\"\"),IF(AND(YEAR(JunDom1+30)=AnoDoCalendário,MONTH(JunDom1+30)=6),JunDom1+30,\"\"))","v":"2020-06-29"},{"$f":"IF(DAY(JunDom1)=1,IF(AND(YEAR(JunDom1+24)=AnoDoCalendário,MONTH(JunDom1+24)=6),JunDom1+24,\"\"),IF(AND(YEAR(JunDom1+31)=AnoDoCalendário,MONTH(JunDom1+31)=6),JunDom1+31,\"\"))","v":"2020-06-30"},{"$f":"IF(DAY(JunDom1)=1,IF(AND(YEAR(JunDom1+25)=AnoDoCalendário,MONTH(JunDom1+25)=6),JunDom1+25,\"\"),IF(AND(YEAR(JunDom1+32)=AnoDoCalendário,MONTH(JunDom1+32)=6),JunDom1+32,\"\"))","v":""},{"$f":"IF(DAY(JunDom1)=1,IF(AND(YEAR(JunDom1+26)=AnoDoCalendário,MONTH(JunDom1+26)=6),JunDom1+26,\"\"),IF(AND(YEAR(JunDom1+33)=AnoDoCalendário,MONTH(JunDom1+33)=6),JunDom1+33,\"\"))","v":""},{"$f":"IF(DAY(JunDom1)=1,IF(AND(YEAR(JunDom1+27)=AnoDoCalendário,MONTH(JunDom1+27)=6),JunDom1+27,\"\"),IF(AND(YEAR(JunDom1+34)=AnoDoCalendário,MONTH(JunDom1+34)=6),JunDom1+34,\"\"))","v":""},{"$f":"IF(DAY(JunDom1)=1,IF(AND(YEAR(JunDom1+28)=AnoDoCalendário,MONTH(JunDom1+28)=6),JunDom1+28,\"\"),IF(AND(YEAR(JunDom1+35)=AnoDoCalendário,MONTH(JunDom1+35)=6),JunDom1+35,\"\"))","v":""}]
[null,null,{"$f":"IF(DAY(MaiDom1)=1,IF(AND(YEAR(MaiDom1+29)=AnoDoCalendário,MONTH(MaiDom1+29)=5),MaiDom1+29,\"\"),IF(AND(YEAR(MaiDom1+36)=AnoDoCalendário,MONTH(MaiDom1+36)=5),MaiDom1+36,\"\"))","v":"2020-05-31"},{"$f":"IF(DAY(MaiDom1)=1,IF(AND(YEAR(MaiDom1+30)=AnoDoCalendário,MONTH(MaiDom1+30)=5),MaiDom1+30,\"\"),IF(AND(YEAR(MaiDom1+37)=AnoDoCalendário,MONTH(MaiDom1+37)=5),MaiDom1+37,\"\"))","v":""},{"$f":"IF(DAY(MaiDom1)=1,IF(AND(YEAR(MaiDom1+31)=AnoDoCalendário,MONTH(MaiDom1+31)=5),MaiDom1+31,\"\"),IF(AND(YEAR(MaiDom1+38)=AnoDoCalendário,MONTH(MaiDom1+38)=5),MaiDom1+38,\"\"))","v":""},{"$f":"IF(DAY(MaiDom1)=1,IF(AND(YEAR(MaiDom1+32)=AnoDoCalendário,MONTH(MaiDom1+32)=5),MaiDom1+32,\"\"),IF(AND(YEAR(MaiDom1+39)=AnoDoCalendário,MONTH(MaiDom1+39)=5),MaiDom1+39,\"\"))","v":""},{"$f":"IF(DAY(MaiDom1)=1,IF(AND(YEAR(MaiDom1+33)=AnoDoCalendário,MONTH(MaiDom1+33)=5),MaiDom1+33,\"\"),IF(AND(YEAR(MaiDom1+40)=AnoDoCalendário,MONTH(MaiDom1+40)=5),MaiDom1+40,\"\"))","v":""},{"$f":"IF(DAY(MaiDom1)=1,IF(AND(YEAR(MaiDom1+34)=AnoDoCalendário,MONTH(MaiDom1+34)=5),MaiDom1+34,\"\"),IF(AND(YEAR(MaiDom1+41)=AnoDoCalendário,MONTH(MaiDom1+41)=5),MaiDom1+41,\"\"))","v":""},{"$f":"IF(DAY(MaiDom1)=1,IF(AND(YEAR(MaiDom1+35)=AnoDoCalendário,MONTH(MaiDom1+35)=5),MaiDom1+35,\"\"),IF(AND(YEAR(MaiDom1+42)=AnoDoCalendário,MONTH(MaiDom1+42)=5),MaiDom1+42,\"\"))","v":""},null,{"$f":"IF(DAY(JunDom1)=1,IF(AND(YEAR(JunDom1+29)=AnoDoCalendário,MONTH(JunDom1+29)=6),JunDom1+29,\"\"),IF(AND(YEAR(JunDom1+36)=AnoDoCalendário,MONTH(JunDom1+36)=6),JunDom1+36,\"\"))","v":""},{"$f":"IF(DAY(JunDom1)=1,IF(AND(YEAR(JunDom1+30)=AnoDoCalendário,MONTH(JunDom1+30)=6),JunDom1+30,\"\"),IF(AND(YEAR(JunDom1+37)=AnoDoCalendário,MONTH(JunDom1+37)=6),JunDom1+37,\"\"))","v":""},{"$f":"IF(DAY(JunDom1)=1,IF(AND(YEAR(JunDom1+31)=AnoDoCalendário,MONTH(JunDom1+31)=6),JunDom1+31,\"\"),IF(AND(YEAR(JunDom1+38)=AnoDoCalendário,MONTH(JunDom1+38)=6),JunDom1+38,\"\"))","v":""},{"$f":"IF(DAY(JunDom1)=1,IF(AND(YEAR(JunDom1+32)=AnoDoCalendário,MONTH(JunDom1+32)=6),JunDom1+32,\"\"),IF(AND(YEAR(JunDom1+39)=AnoDoCalendário,MONTH(JunDom1+39)=6),JunDom1+39,\"\"))","v":""},{"$f":"IF(DAY(JunDom1)=1,IF(AND(YEAR(JunDom1+33)=AnoDoCalendário,MONTH(JunDom1+33)=6),JunDom1+33,\"\"),IF(AND(YEAR(JunDom1+40)=AnoDoCalendário,MONTH(JunDom1+40)=6),JunDom1+40,\"\"))","v":""},{"$f":"IF(DAY(JunDom1)=1,IF(AND(YEAR(JunDom1+34)=AnoDoCalendário,MONTH(JunDom1+34)=6),JunDom1+34,\"\"),IF(AND(YEAR(JunDom1+41)=AnoDoCalendário,MONTH(JunDom1+41)=6),JunDom1+41,\"\"))","v":""},{"$f":"IF(DAY(JunDom1)=1,IF(AND(YEAR(JunDom1+35)=AnoDoCalendário,MONTH(JunDom1+35)=6),JunDom1+35,\"\"),IF(AND(YEAR(JunDom1+42)=AnoDoCalendário,MONTH(JunDom1+42)=6),JunDom1+42,\"\"))","v":""}]
[]
["O rótulo de Julho está na célula C30 e a de Agosto na célula K30.",null,"JULHO",{"$nulls":7},"AGOSTO"]
["A tabela do calendário de Julho está nas células C31 a I37 e a de Agosto nas células K31 a Q37. A próxima instrução está na célula A39",null,"DOM","SEG","TER","QUA","QUI","SEX","SÁB",null,"DOM","SEG","TER","QUA","QUI","SEX","SÁB"]
[null,null,{"$f":"IF(DAY(JulDom1)=1,\"\",IF(AND(YEAR(JulDom1+1)=AnoDoCalendário,MONTH(JulDom1+1)=7),JulDom1+1,\"\"))","v":""},{"$f":"IF(DAY(JulDom1)=1,\"\",IF(AND(YEAR(JulDom1+2)=AnoDoCalendário,MONTH(JulDom1+2)=7),JulDom1+2,\"\"))","v":""},{"$f":"IF(DAY(JulDom1)=1,\"\",IF(AND(YEAR(JulDom1+3)=AnoDoCalendário,MONTH(JulDom1+3)=7),JulDom1+3,\"\"))","v":""},{"$f":"IF(DAY(JulDom1)=1,\"\",IF(AND(YEAR(JulDom1+4)=AnoDoCalendário,MONTH(JulDom1+4)=7),JulDom1+4,\"\"))","v":"2020-07-01"},{"$f":"IF(DAY(JulDom1)=1,\"\",IF(AND(YEAR(JulDom1+5)=AnoDoCalendário,MONTH(JulDom1+5)=7),JulDom1+5,\"\"))","v":"2020-07-02"},{"$f":"IF(DAY(JulDom1)=1,\"\",IF(AND(YEAR(JulDom1+6)=AnoDoCalendário,MONTH(JulDom1+6)=7),JulDom1+6,\"\"))","v":"2020-07-03"},{"$f":"IF(DAY(JulDom1)=1,IF(AND(YEAR(JulDom1)=AnoDoCalendário,MONTH(JulDom1)=7),JulDom1,\"\"),IF(AND(YEAR(JulDom1+7)=AnoDoCalendário,MONTH(JulDom1+7)=7),JulDom1+7,\"\"))","v":"2020-07-04"},null,{"$f":"IF(DAY(AgoDom1)=1,\"\",IF(AND(YEAR(AgoDom1+1)=AnoDoCalendário,MONTH(AgoDom1+1)=8),AgoDom1+1,\"\"))","v":""},{"$f":"IF(DAY(AgoDom1)=1,\"\",IF(AND(YEAR(AgoDom1+2)=AnoDoCalendário,MONTH(AgoDom1+2)=8),AgoDom1+2,\"\"))","v":""},{"$f":"IF(DAY(AgoDom1)=1,\"\",IF(AND(YEAR(AgoDom1+3)=AnoDoCalendário,MONTH(AgoDom1+3)=8),AgoDom1+3,\"\"))","v":""},{"$f":"IF(DAY(AgoDom1)=1,\"\",IF(AND(YEAR(AgoDom1+4)=AnoDoCalendário,MONTH(AgoDom1+4)=8),AgoDom1+4,\"\"))","v":""},{"$f":"IF(DAY(AgoDom1)=1,\"\",IF(AND(YEAR(AgoDom1+5)=AnoDoCalendário,MONTH(AgoDom1+5)=8),AgoDom1+5,\"\"))","v":""},{"$f":"IF(DAY(AgoDom1)=1,\"\",IF(AND(YEAR(AgoDom1+6)=AnoDoCalendário,MONTH(AgoDom1+6)=8),AgoDom1+6,\"\"))","v":""},{"$f":"IF(DAY(AgoDom1)=1,IF(AND(YEAR(AgoDom1)=AnoDoCalendário,MONTH(AgoDom1)=8),AgoDom1,\"\"),IF(AND(YEAR(AgoDom1+7)=AnoDoCalendário,MONTH(AgoDom1+7)=8),AgoDom1+7,\"\"))","v":"2020-08-01"}]
[null,null,{"$f":"IF(DAY(JulDom1)=1,IF(AND(YEAR(JulDom1+1)=AnoDoCalendário,MONTH(JulDom1+1)=7),JulDom1+1,\"\"),IF(AND(YEAR(JulDom1+8)=AnoDoCalendário,MONTH(JulDom1+8)=7),JulDom1+8,\"\"))","v":"2020-07-05"},{"$f":"IF(DAY(JulDom1)=1,IF(AND(YEAR(JulDom1+2)=AnoDoCalendário,MONTH(JulDom1+2)=7),JulDom1+2,\"\"),IF(AND(YEAR(JulDom1+9)=AnoDoCalendário,MONTH(JulDom1+9)=7),JulDom1+9,\"\"))","v":"2020-07-06"},{"$f":"IF(DAY(JulDom1)=1,IF(AND(YEAR(JulDom1+3)=AnoDoCalendário,MONTH(JulDom1+3)=7),JulDom1+3,\"\"),IF(AND(YEAR(JulDom1+10)=AnoDoCalendário,MONTH(JulDom1+10)=7),JulDom1+10,\"\"))","v":"2020-07-07"},{"$f":"IF(DAY(JulDom1)=1,IF(AND(YEAR(JulDom1+4)=AnoDoCalendário,MONTH(JulDom1+4)=7),JulDom1+4,\"\"),IF(AND(YEAR(JulDom1+11)=AnoDoCalendário,MONTH(JulDom1+11)=7),JulDom1+11,\"\"))","v":"2020-07-08"},{"$f":"IF(DAY(JulDom1)=1,IF(AND(YEAR(JulDom1+5)=AnoDoCalendário,MONTH(JulDom1+5)=7),JulDom1+5,\"\"),IF(AND(YEAR(JulDom1+12)=AnoDoCalendário,MONTH(JulDom1+12)=7),JulDom1+12,\"\"))","v":"2020-07-09"},{"$f":"IF(DAY(JulDom1)=1,IF(AND(YEAR(JulDom1+6)=AnoDoCalendário,MONTH(JulDom1+6)=7),JulDom1+6,\"\"),IF(AND(YEAR(JulDom1+13)=AnoDoCalendário,MONTH(JulDom1+13)=7),JulDom1+13,\"\"))","v":"2020-07-10"},{"$f":"IF(DAY(JulDom1)=1,IF(AND(YEAR(JulDom1+7)=AnoDoCalendário,MONTH(JulDom1+7)=7),JulDom1+7,\"\"),IF(AND(YEAR(JulDom1+14)=AnoDoCalendário,MONTH(JulDom1+14)=7),JulDom1+14,\"\"))","v":"2020-07-11"},null,{"$f":"IF(DAY(AgoDom1)=1,IF(AND(YEAR(AgoDom1+1)=AnoDoCalendário,MONTH(AgoDom1+1)=8),AgoDom1+1,\"\"),IF(AND(YEAR(AgoDom1+8)=AnoDoCalendário,MONTH(AgoDom1+8)=8),AgoDom1+8,\"\"))","v":"2020-08-02"},{"$f":"IF(DAY(AgoDom1)=1,IF(AND(YEAR(AgoDom1+2)=AnoDoCalendário,MONTH(AgoDom1+2)=8),AgoDom1+2,\"\"),IF(AND(YEAR(AgoDom1+9)=AnoDoCalendário,MONTH(AgoDom1+9)=8),AgoDom1+9,\"\"))","v":"2020-08-03"},{"$f":"IF(DAY(AgoDom1)=1,IF(AND(YEAR(AgoDom1+3)=AnoDoCalendário,MONTH(AgoDom1+3)=8),AgoDom1+3,\"\"),IF(AND(YEAR(AgoDom1+10)=AnoDoCalendário,MONTH(AgoDom1+10)=8),AgoDom1+10,\"\"))","v":"2020-08-04"},{"$f":"IF(DAY(AgoDom1)=1,IF(AND(YEAR(AgoDom1+4)=AnoDoCalendário,MONTH(AgoDom1+4)=8),AgoDom1+4,\"\"),IF(AND(YEAR(AgoDom1+11)=AnoDoCalendário,MONTH(AgoDom1+11)=8),AgoDom1+11,\"\"))","v":"2020-08-05"},{"$f":"IF(DAY(AgoDom1)=1,IF(AND(YEAR(AgoDom1+5)=AnoDoCalendário,MONTH(AgoDom1+5)=8),AgoDom1+5,\"\"),IF(AND(YEAR(AgoDom1+12)=AnoDoCalendário,MONTH(AgoDom1+12)=8),AgoDom1+12,\"\"))","v":"2020-08-06"},{"$f":"IF(DAY(AgoDom1)=1,IF(AND(YEAR(AgoDom1+6)=AnoDoCalendário,MONTH(AgoDom1+6)=8),AgoDom1+6,\"\"),IF(AND(YEAR(AgoDom1+13)=AnoDoCalendário,MONTH(AgoDom1+13)=8),AgoDom1+13,\"\"))","v":"2020-08-07"},{"$f":"IF(DAY(AgoDom1)=1,IF(AND(YEAR(AgoDom1+7)=AnoDoCalendário,MONTH(AgoDom1+7)=8),AgoDom1+7,\"\"),IF(AND(YEAR(AgoDom1+14)=AnoDoCalendário,MONTH(AgoDom1+14)=8),AgoDom1+14,\"\"))","v":"2020-08-08"}]
[null,null,{"$f":"IF(DAY(JulDom1)=1,IF(AND(YEAR(JulDom1+8)=AnoDoCalendário,MONTH(JulDom1+8)=7),JulDom1+8,\"\"),IF(AND(YEAR(JulDom1+15)=AnoDoCalendário,MONTH(JulDom1+15)=7),JulDom1+15,\"\"))","v":"2020-07-12"},{"$f":"IF(DAY(JulDom1)=1,IF(AND(YEAR(JulDom1+9)=AnoDoCalendário,MONTH(JulDom1+9)=7),JulDom1+9,\"\"),IF(AND(YEAR(JulDom1+16)=AnoDoCalendário,MONTH(JulDom1+16)=7),JulDom1+16,\"\"))","v":"2020-07-13"},{"$f":"IF(DAY(JulDom1)=1,IF(AND(YEAR(JulDom1+10)=AnoDoCalendário,MONTH(JulDom1+10)=7),JulDom1+10,\"\"),IF(AND(YEAR(JulDom1+17)=AnoDoCalendário,MONTH(JulDom1+17)=7),JulDom1+17,\"\"))","v":"2020-07-14"},{"$f":"IF(DAY(JulDom1)=1,IF(AND(YEAR(JulDom1+11)=AnoDoCalendário,MONTH(JulDom1+11)=7),JulDom1+11,\"\"),IF(AND(YEAR(JulDom1+18)=AnoDoCalendário,MONTH(JulDom1+18)=7),JulDom1+18,\"\"))","v":"2020-07-15"},{"$f":"IF(DAY(JulDom1)=1,IF(AND(YEAR(JulDom1+12)=AnoDoCalendário,MONTH(JulDom1+12)=7),JulDom1+12,\"\"),IF(AND(YEAR(JulDom1+19)=AnoDoCalendário,MONTH(JulDom1+19)=7),JulDom1+19,\"\"))","v":"2020-07-16"},{"$f":"IF(DAY(JulDom1)=1,IF(AND(YEAR(JulDom1+13)=AnoDoCalendário,MONTH(JulDom1+13)=7),JulDom1+13,\"\"),IF(AND(YEAR(JulDom1+20)=AnoDoCalendário,MONTH(JulDom1+20)=7),JulDom1+20,\"\"))","v":"2020-07-17"},{"$f":"IF(DAY(JulDom1)=1,IF(AND(YEAR(JulDom1+14)=AnoDoCalendário,MONTH(JulDom1+14)=7),JulDom1+14,\"\"),IF(AND(YEAR(JulDom1+21)=AnoDoCalendário,MONTH(JulDom1+21)=7),JulDom1+21,\"\"))","v":"2020-07-18"},null,{"$f":"IF(DAY(AgoDom1)=1,IF(AND(YEAR(AgoDom1+8)=AnoDoCalendário,MONTH(AgoDom1+8)=8),AgoDom1+8,\"\"),IF(AND(YEAR(AgoDom1+15)=AnoDoCalendário,MONTH(AgoDom1+15)=8),AgoDom1+15,\"\"))","v":"2020-08-09"},{"$f":"IF(DAY(AgoDom1)=1,IF(AND(YEAR(AgoDom1+9)=AnoDoCalendário,MONTH(AgoDom1+9)=8),AgoDom1+9,\"\"),IF(AND(YEAR(AgoDom1+16)=AnoDoCalendário,MONTH(AgoDom1+16)=8),AgoDom1+16,\"\"))","v":"2020-08-10"},{"$f":"IF(DAY(AgoDom1)=1,IF(AND(YEAR(AgoDom1+10)=AnoDoCalendário,MONTH(AgoDom1+10)=8),AgoDom1+10,\"\"),IF(AND(YEAR(AgoDom1+17)=AnoDoCalendário,MONTH(AgoDom1+17)=8),AgoDom1+17,\"\"))","v":"2020-08-11"},{"$f":"IF(DAY(AgoDom1)=1,IF(AND(YEAR(AgoDom1+11)=AnoDoCalendário,MONTH(AgoDom1+11)=8),AgoDom1+11,\"\"),IF(AND(YEAR(AgoDom1+18)=AnoDoCalendário,MONTH(AgoDom1+18)=8),AgoDom1+18,\"\"))","v":"2020-08-12"},{"$f":"IF(DAY(AgoDom1)=1,IF(AND(YEAR(AgoDom1+12)=AnoDoCalendário,MONTH(AgoDom1+12)=8),AgoDom1+12,\"\"),IF(AND(YEAR(AgoDom1+19)=AnoDoCalendário,MONTH(AgoDom1+19)=8),AgoDom1+19,\"\"))","v":"2020-08-13"},{"$f":"IF(DAY(AgoDom1)=1,IF(AND(YEAR(AgoDom1+13)=AnoDoCalendário,MONTH(AgoDom1+13)=8),AgoDom1+13,\"\"),IF(AND(YEAR(AgoDom1+20)=AnoDoCalendário,MONTH(AgoDom1+20)=8),AgoDom1+20,\"\"))","v":"2020-08-14"},{"$f":"IF(DAY(AgoDom1)=1,IF(AND(YEAR(AgoDom1+14)=AnoDoCalendário,MONTH(AgoDom1+14)=8),AgoDom1+14,\"\"),IF(AND(YEAR(AgoDom1+21)=AnoDoCalendário,MONTH(AgoDom1+21)=8),AgoDom1+21,\"\"))","v":"2020-08-15"}]
[null,null,{"$f":"IF(DAY(JulDom1)=1,IF(AND(YEAR(JulDom1+15)=AnoDoCalendário,MONTH(JulDom1+15)=7),JulDom1+15,\"\"),IF(AND(YEAR(JulDom1+22)=AnoDoCalendário,MONTH(JulDom1+22)=7),JulDom1+22,\"\"))","v":"2020-07-19"},{"$f":"IF(DAY(JulDom1)=1,IF(AND(YEAR(JulDom1+16)=AnoDoCalendário,MONTH(JulDom1+16)=7),JulDom1+16,\"\"),IF(AND(YEAR(JulDom1+23)=AnoDoCalendário,MONTH(JulDom1+23)=7),JulDom1+23,\"\"))","v":"2020-07-20"},{"$f":"IF(DAY(JulDom1)=1,IF(AND(YEAR(JulDom1+17)=AnoDoCalendário,MONTH(JulDom1+17)=7),JulDom1+17,\"\"),IF(AND(YEAR(JulDom1+24)=AnoDoCalendário,MONTH(JulDom1+24)=7),JulDom1+24,\"\"))","v":"2020-07-21"},{"$f":"IF(DAY(JulDom1)=1,IF(AND(YEAR(JulDom1+18)=AnoDoCalendário,MONTH(JulDom1+18)=7),JulDom1+18,\"\"),IF(AND(YEAR(JulDom1+25)=AnoDoCalendário,MONTH(JulDom1+25)=7),JulDom1+25,\"\"))","v":"2020-07-22"},{"$f":"IF(DAY(JulDom1)=1,IF(AND(YEAR(JulDom1+19)=AnoDoCalendário,MONTH(JulDom1+19)=7),JulDom1+19,\"\"),IF(AND(YEAR(JulDom1+26)=AnoDoCalendário,MONTH(JulDom1+26)=7),JulDom1+26,\"\"))","v":"2020-07-23"},{"$f":"IF(DAY(JulDom1)=1,IF(AND(YEAR(JulDom1+20)=AnoDoCalendário,MONTH(JulDom1+20)=7),JulDom1+20,\"\"),IF(AND(YEAR(JulDom1+27)=AnoDoCalendário,MONTH(JulDom1+27)=7),JulDom1+27,\"\"))","v":"2020-07-24"},{"$f":"IF(DAY(JulDom1)=1,IF(AND(YEAR(JulDom1+21)=AnoDoCalendário,MONTH(JulDom1+21)=7),JulDom1+21,\"\"),IF(AND(YEAR(JulDom1+28)=AnoDoCalendário,MONTH(JulDom1+28)=7),JulDom1+28,\"\"))","v":"2020-07-25"},null,{"$f":"IF(DAY(AgoDom1)=1,IF(AND(YEAR(AgoDom1+15)=AnoDoCalendário,MONTH(AgoDom1+15)=8),AgoDom1+15,\"\"),IF(AND(YEAR(AgoDom1+22)=AnoDoCalendário,MONTH(AgoDom1+22)=8),AgoDom1+22,\"\"))","v":"2020-08-16"},{"$f":"IF(DAY(AgoDom1)=1,IF(AND(YEAR(AgoDom1+16)=AnoDoCalendário,MONTH(AgoDom1+16)=8),AgoDom1+16,\"\"),IF(AND(YEAR(AgoDom1+23)=AnoDoCalendário,MONTH(AgoDom1+23)=8),AgoDom1+23,\"\"))","v":"2020-08-17"},{"$f":"IF(DAY(AgoDom1)=1,IF(AND(YEAR(AgoDom1+17)=AnoDoCalendário,MONTH(AgoDom1+17)=8),AgoDom1+17,\"\"),IF(AND(YEAR(AgoDom1+24)=AnoDoCalendário,MONTH(AgoDom1+24)=8),AgoDom1+24,\"\"))","v":"2020-08-18"},{"$f":"IF(DAY(AgoDom1)=1,IF(AND(YEAR(AgoDom1+18)=AnoDoCalendário,MONTH(AgoDom1+18)=8),AgoDom1+18,\"\"),IF(AND(YEAR(AgoDom1+25)=AnoDoCalendário,MONTH(AgoDom1+25)=8),AgoDom1+25,\"\"))","v":"2020-08-19"},{"$f":"IF(DAY(AgoDom1)=1,IF(AND(YEAR(AgoDom1+19)=AnoDoCalendário,MONTH(AgoDom1+19)=8),AgoDom1+19,\"\"),IF(AND(YEAR(AgoDom1+26)=AnoDoCalendário,MONTH(AgoDom1+26)=8),AgoDom1+26,\"\"))","v":"2020-08-20"},{"$f":"IF(DAY(AgoDom1)=1,IF(AND(YEAR(AgoDom1+20)=AnoDoCalendário,MONTH(AgoDom1+20)=8),AgoDom1+20,\"\"),IF(AND(YEAR(AgoDom1+27)=AnoDoCalendário,MONTH(AgoDom1+27)=8),AgoDom1+27,\"\"))","v":"2020-08-21"},{"$f":"IF(DAY(AgoDom1)=1,IF(AND(YEAR(AgoDom1+21)=AnoDoCalendário,MONTH(AgoDom1+21)=8),AgoDom1+21,\"\"),IF(AND(YEAR(AgoDom1+28)=AnoDoCalendário,MONTH(AgoDom1+28)=8),AgoDom1+28,\"\"))","v":"2020-08-22"}]
[null,null,{"$f":"IF(DAY(JulDom1)=1,IF(AND(YEAR(JulDom1+22)=AnoDoCalendário,MONTH(JulDom1+22)=7),JulDom1+22,\"\"),IF(AND(YEAR(JulDom1+29)=AnoDoCalendário,MONTH(JulDom1+29)=7),JulDom1+29,\"\"))","v":"2020-07-26"},{"$f":"IF(DAY(JulDom1)=1,IF(AND(YEAR(JulDom1+23)=AnoDoCalendário,MONTH(JulDom1+23)=7),JulDom1+23,\"\"),IF(AND(YEAR(JulDom1+30)=AnoDoCalendário,MONTH(JulDom1+30)=7),JulDom1+30,\"\"))","v":"2020-07-27"},{"$f":"IF(DAY(JulDom1)=1,IF(AND(YEAR(JulDom1+24)=AnoDoCalendário,MONTH(JulDom1+24)=7),JulDom1+24,\"\"),IF(AND(YEAR(JulDom1+31)=AnoDoCalendário,MONTH(JulDom1+31)=7),JulDom1+31,\"\"))","v":"2020-07-28"},{"$f":"IF(DAY(JulDom1)=1,IF(AND(YEAR(JulDom1+25)=AnoDoCalendário,MONTH(JulDom1+25)=7),JulDom1+25,\"\"),IF(AND(YEAR(JulDom1+32)=AnoDoCalendário,MONTH(JulDom1+32)=7),JulDom1+32,\"\"))","v":"2020-07-29"},{"$f":"IF(DAY(JulDom1)=1,IF(AND(YEAR(JulDom1+26)=AnoDoCalendário,MONTH(JulDom1+26)=7),JulDom1+26,\"\"),IF(AND(YEAR(JulDom1+33)=AnoDoCalendário,MONTH(JulDom1+33)=7),JulDom1+33,\"\"))","v":"2020-07-30"},{"$f":"IF(DAY(JulDom1)=1,IF(AND(YEAR(JulDom1+27)=AnoDoCalendário,MONTH(JulDom1+27)=7),JulDom1+27,\"\"),IF(AND(YEAR(JulDom1+34)=AnoDoCalendário,MONTH(JulDom1+34)=7),JulDom1+34,\"\"))","v":"2020-07-31"},{"$f":"IF(DAY(JulDom1)=1,IF(AND(YEAR(JulDom1+28)=AnoDoCalendário,MONTH(JulDom1+28)=7),JulDom1+28,\"\"),IF(AND(YEAR(JulDom1+35)=AnoDoCalendário,MONTH(JulDom1+35)=7),JulDom1+35,\"\"))","v":""},null,{"$f":"IF(DAY(AgoDom1)=1,IF(AND(YEAR(AgoDom1+22)=AnoDoCalendário,MONTH(AgoDom1+22)=8),AgoDom1+22,\"\"),IF(AND(YEAR(AgoDom1+29)=AnoDoCalendário,MONTH(AgoDom1+29)=8),AgoDom1+29,\"\"))","v":"2020-08-23"},{"$f":"IF(DAY(AgoDom1)=1,IF(AND(YEAR(AgoDom1+23)=AnoDoCalendário,MONTH(AgoDom1+23)=8),AgoDom1+23,\"\"),IF(AND(YEAR(AgoDom1+30)=AnoDoCalendário,MONTH(AgoDom1+30)=8),AgoDom1+30,\"\"))","v":"2020-08-24"},{"$f":"IF(DAY(AgoDom1)=1,IF(AND(YEAR(AgoDom1+24)=AnoDoCalendário,MONTH(AgoDom1+24)=8),AgoDom1+24,\"\"),IF(AND(YEAR(AgoDom1+31)=AnoDoCalendário,MONTH(AgoDom1+31)=8),AgoDom1+31,\"\"))","v":"2020-08-25"},{"$f":"IF(DAY(AgoDom1)=1,IF(AND(YEAR(AgoDom1+25)=AnoDoCalendário,MONTH(AgoDom1+25)=8),AgoDom1+25,\"\"),IF(AND(YEAR(AgoDom1+32)=AnoDoCalendário,MONTH(AgoDom1+32)=8),AgoDom1+32,\"\"))","v":"2020-08-26"},{"$f":"IF(DAY(AgoDom1)=1,IF(AND(YEAR(AgoDom1+26)=AnoDoCalendário,MONTH(AgoDom1+26)=8),AgoDom1+26,\"\"),IF(AND(YEAR(AgoDom1+33)=AnoDoCalendário,MONTH(AgoDom1+33)=8),AgoDom1+33,\"\"))","v":"2020-08-27"},{"$f":"IF(DAY(AgoDom1)=1,IF(AND(YEAR(AgoDom1+27)=AnoDoCalendário,MONTH(AgoDom1+27)=8),AgoDom1+27,\"\"),IF(AND(YEAR(AgoDom1+34)=AnoDoCalendário,MONTH(AgoDom1+34)=8),AgoDom1+34,\"\"))","v":"2020-08-28"},{"$f":"IF(DAY(AgoDom1)=1,IF(AND(YEAR(AgoDom1+28)=AnoDoCalendário,MONTH(AgoDom1+28)=8),AgoDom1+28,\"\"),IF(AND(YEAR(AgoDom1+35)=AnoDoCalendário,MONTH(AgoDom1+35)=8),AgoDom1+35,\"\"))","v":"2020-08-29"}]
[null,null,{"$f":"IF(DAY(JulDom1)=1,IF(AND(YEAR(JulDom1+29)=AnoDoCalendário,MONTH(JulDom1+29)=7),JulDom1+29,\"\"),IF(AND(YEAR(JulDom1+36)=AnoDoCalendário,MONTH(JulDom1+36)=7),JulDom1+36,\"\"))","v":""},{"$f":"IF(DAY(JulDom1)=1,IF(AND(YEAR(JulDom1+30)=AnoDoCalendário,MONTH(JulDom1+30)=7),JulDom1+30,\"\"),IF(AND(YEAR(JulDom1+37)=AnoDoCalendário,MONTH(JulDom1+37)=7),JulDom1+37,\"\"))","v":""},{"$f":"IF(DAY(JulDom1)=1,IF(AND(YEAR(JulDom1+31)=AnoDoCalendário,MONTH(JulDom1+31)=7),JulDom1+31,\"\"),IF(AND(YEAR(JulDom1+38)=AnoDoCalendário,MONTH(JulDom1+38)=7),JulDom1+38,\"\"))","v":""},{"$f":"IF(DAY(JulDom1)=1,IF(AND(YEAR(JulDom1+32)=AnoDoCalendário,MONTH(JulDom1+32)=7),JulDom1+32,\"\"),IF(AND(YEAR(JulDom1+39)=AnoDoCalendário,MONTH(JulDom1+39)=7),JulDom1+39,\"\"))","v":""},{"$f":"IF(DAY(JulDom1)=1,IF(AND(YEAR(JulDom1+33)=AnoDoCalendário,MONTH(JulDom1+33)=7),JulDom1+33,\"\"),IF(AND(YEAR(JulDom1+40)=AnoDoCalendário,MONTH(JulDom1+40)=7),JulDom1+40,\"\"))","v":""},{"$f":"IF(DAY(JulDom1)=1,IF(AND(YEAR(JulDom1+34)=AnoDoCalendário,MONTH(JulDom1+34)=7),JulDom1+34,\"\"),IF(AND(YEAR(JulDom1+41)=AnoDoCalendário,MONTH(JulDom1+41)=7),JulDom1+41,\"\"))","v":""},{"$f":"IF(DAY(JulDom1)=1,IF(AND(YEAR(JulDom1+35)=AnoDoCalendário,MONTH(JulDom1+35)=7),JulDom1+35,\"\"),IF(AND(YEAR(JulDom1+42)=AnoDoCalendário,MONTH(JulDom1+42)=7),JulDom1+42,\"\"))","v":""},null,{"$f":"IF(DAY(AgoDom1)=1,IF(AND(YEAR(AgoDom1+29)=AnoDoCalendário,MONTH(AgoDom1+29)=8),AgoDom1+29,\"\"),IF(AND(YEAR(AgoDom1+36)=AnoDoCalendário,MONTH(AgoDom1+36)=8),AgoDom1+36,\"\"))","v":"2020-08-30"},{"$f":"IF(DAY(AgoDom1)=1,IF(AND(YEAR(AgoDom1+30)=AnoDoCalendário,MONTH(AgoDom1+30)=8),AgoDom1+30,\"\"),IF(AND(YEAR(AgoDom1+37)=AnoDoCalendário,MONTH(AgoDom1+37)=8),AgoDom1+37,\"\"))","v":"2020-08-31"},{"$f":"IF(DAY(AgoDom1)=1,IF(AND(YEAR(AgoDom1+31)=AnoDoCalendário,MONTH(AgoDom1+31)=8),AgoDom1+31,\"\"),IF(AND(YEAR(AgoDom1+38)=AnoDoCalendário,MONTH(AgoDom1+38)=8),AgoDom1+38,\"\"))","v":""},{"$f":"IF(DAY(AgoDom1)=1,IF(AND(YEAR(AgoDom1+32)=AnoDoCalendário,MONTH(AgoDom1+32)=8),AgoDom1+32,\"\"),IF(AND(YEAR(AgoDom1+39)=AnoDoCalendário,MONTH(AgoDom1+39)=8),AgoDom1+39,\"\"))","v":""},{"$f":"IF(DAY(AgoDom1)=1,IF(AND(YEAR(AgoDom1+33)=AnoDoCalendário,MONTH(AgoDom1+33)=8),AgoDom1+33,\"\"),IF(AND(YEAR(AgoDom1+40)=AnoDoCalendário,MONTH(AgoDom1+40)=8),AgoDom1+40,\"\"))","v":""},{"$f":"IF(DAY(AgoDom1)=1,IF(AND(YEAR(AgoDom1+34)=AnoDoCalendário,MONTH(AgoDom1+34)=8),AgoDom1+34,\"\"),IF(AND(YEAR(AgoDom1+41)=AnoDoCalendário,MONTH(AgoDom1+41)=8),AgoDom1+41,\"\"))","v":""},{"$f":"IF(DAY(AgoDom1)=1,IF(AND(YEAR(AgoDom1+35)=AnoDoCalendário,MONTH(AgoDom1+35)=8),AgoDom1+35,\"\"),IF(AND(YEAR(AgoDom1+42)=AnoDoCalendário,MONTH(AgoDom1+42)=8),AgoDom1+42,\"\"))","v":""}]
[]
["O rótulo de Setembro está na célula C39 e o de Outubro na célula K39.",null,"SETEMBRO",{"$nulls":7},"OUTUBRO"]
["A tabela do calendário de Setembro está nas células C40 a I46 e a de Outubro nas células K40 a Q46. A próxima instrução está na célula A44",null,"DOM","SEG","TER","QUA","QUI","SEX","SÁB",null,"DOM","SEG","TER","QUA","QUI","SEX","SÁB"]
[null,null,{"$f":"IF(DAY(SetDom1)=1,\"\",IF(AND(YEAR(SetDom1+1)=AnoDoCalendário,MONTH(SetDom1+1)=9),SetDom1+1,\"\"))","v":""},{"$f":"IF(DAY(SetDom1)=1,\"\",IF(AND(YEAR(SetDom1+2)=AnoDoCalendário,MONTH(SetDom1+2)=9),SetDom1+2,\"\"))","v":""},{"$f":"IF(DAY(SetDom1)=1,\"\",IF(AND(YEAR(SetDom1+3)=AnoDoCalendário,MONTH(SetDom1+3)=9),SetDom1+3,\"\"))","v":"2020-09-01"},{"$f":"IF(DAY(SetDom1)=1,\"\",IF(AND(YEAR(SetDom1+4)=AnoDoCalendário,MONTH(SetDom1+4)=9),SetDom1+4,\"\"))","v":"2020-09-02"},{"$f":"IF(DAY(SetDom1)=1,\"\",IF(AND(YEAR(SetDom1+5)=AnoDoCalendário,MONTH(SetDom1+5)=9),SetDom1+5,\"\"))","v":"2020-09-03"},{"$f":"IF(DAY(SetDom1)=1,\"\",IF(AND(YEAR(SetDom1+6)=AnoDoCalendário,MONTH(SetDom1+6)=9),SetDom1+6,\"\"))","v":"2020-09-04"},{"$f":"IF(DAY(SetDom1)=1,IF(AND(YEAR(SetDom1)=AnoDoCalendário,MONTH(SetDom1)=9),SetDom1,\"\"),IF(AND(YEAR(SetDom1+7)=AnoDoCalendário,MONTH(SetDom1+7)=9),SetDom1+7,\"\"))","v":"2020-09-05"},null,{"$f":"IF(DAY(OutDom1)=1,\"\",IF(AND(YEAR(OutDom1+1)=AnoDoCalendário,MONTH(OutDom1+1)=10),OutDom1+1,\"\"))","v":""},{"$f":"IF(DAY(OutDom1)=1,\"\",IF(AND(YEAR(OutDom1+2)=AnoDoCalendário,MONTH(OutDom1+2)=10),OutDom1+2,\"\"))","v":""},{"$f":"IF(DAY(OutDom1)=1,\"\",IF(AND(YEAR(OutDom1+3)=AnoDoCalendário,MONTH(OutDom1+3)=10),OutDom1+3,\"\"))","v":""},{"$f":"IF(DAY(OutDom1)=1,\"\",IF(AND(YEAR(OutDom1+4)=AnoDoCalendário,MONTH(OutDom1+4)=10),OutDom1+4,\"\"))","v":""},{"$f":"IF(DAY(OutDom1)=1,\"\",IF(AND(YEAR(OutDom1+5)=AnoDoCalendário,MONTH(OutDom1+5)=10),OutDom1+5,\"\"))","v":"2020-10-01"},{"$f":"IF(DAY(OutDom1)=1,\"\",IF(AND(YEAR(OutDom1+6)=AnoDoCalendário,MONTH(OutDom1+6)=10),OutDom1+6,\"\"))","v":"2020-10-02"},{"$f":"IF(DAY(OutDom1)=1,IF(AND(YEAR(OutDom1)=AnoDoCalendário,MONTH(OutDom1)=10),OutDom1,\"\"),IF(AND(YEAR(OutDom1+7)=AnoDoCalendário,MONTH(OutDom1+7)=10),OutDom1+7,\"\"))","v":"2020-10-03"}]
[null,null,{"$f":"IF(DAY(SetDom1)=1,IF(AND(YEAR(SetDom1+1)=AnoDoCalendário,MONTH(SetDom1+1)=9),SetDom1+1,\"\"),IF(AND(YEAR(SetDom1+8)=AnoDoCalendário,MONTH(SetDom1+8)=9),SetDom1+8,\"\"))","v":"2020-09-06"},{"$f":"IF(DAY(SetDom1)=1,IF(AND(YEAR(SetDom1+2)=AnoDoCalendário,MONTH(SetDom1+2)=9),SetDom1+2,\"\"),IF(AND(YEAR(SetDom1+9)=AnoDoCalendário,MONTH(SetDom1+9)=9),SetDom1+9,\"\"))","v":"2020-09-07"},{"$f":"IF(DAY(SetDom1)=1,IF(AND(YEAR(SetDom1+3)=AnoDoCalendário,MONTH(SetDom1+3)=9),SetDom1+3,\"\"),IF(AND(YEAR(SetDom1+10)=AnoDoCalendário,MONTH(SetDom1+10)=9),SetDom1+10,\"\"))","v":"2020-09-08"},{"$f":"IF(DAY(SetDom1)=1,IF(AND(YEAR(SetDom1+4)=AnoDoCalendário,MONTH(SetDom1+4)=9),SetDom1+4,\"\"),IF(AND(YEAR(SetDom1+11)=AnoDoCalendário,MONTH(SetDom1+11)=9),SetDom1+11,\"\"))","v":"2020-09-09"},{"$f":"IF(DAY(SetDom1)=1,IF(AND(YEAR(SetDom1+5)=AnoDoCalendário,MONTH(SetDom1+5)=9),SetDom1+5,\"\"),IF(AND(YEAR(SetDom1+12)=AnoDoCalendário,MONTH(SetDom1+12)=9),SetDom1+12,\"\"))","v":"2020-09-10"},{"$f":"IF(DAY(SetDom1)=1,IF(AND(YEAR(SetDom1+6)=AnoDoCalendário,MONTH(SetDom1+6)=9),SetDom1+6,\"\"),IF(AND(YEAR(SetDom1+13)=AnoDoCalendário,MONTH(SetDom1+13)=9),SetDom1+13,\"\"))","v":"2020-09-11"},{"$f":"IF(DAY(SetDom1)=1,IF(AND(YEAR(SetDom1+7)=AnoDoCalendário,MONTH(SetDom1+7)=9),SetDom1+7,\"\"),IF(AND(YEAR(SetDom1+14)=AnoDoCalendário,MONTH(SetDom1+14)=9),SetDom1+14,\"\"))","v":"2020-09-12"},null,{"$f":"IF(DAY(OutDom1)=1,IF(AND(YEAR(OutDom1+1)=AnoDoCalendário,MONTH(OutDom1+1)=10),OutDom1+1,\"\"),IF(AND(YEAR(OutDom1+8)=AnoDoCalendário,MONTH(OutDom1+8)=10),OutDom1+8,\"\"))","v":"2020-10-04"},{"$f":"IF(DAY(OutDom1)=1,IF(AND(YEAR(OutDom1+2)=AnoDoCalendário,MONTH(OutDom1+2)=10),OutDom1+2,\"\"),IF(AND(YEAR(OutDom1+9)=AnoDoCalendário,MONTH(OutDom1+9)=10),OutDom1+9,\"\"))","v":"2020-10-05"},{"$f":"IF(DAY(OutDom1)=1,IF(AND(YEAR(OutDom1+3)=AnoDoCalendário,MONTH(OutDom1+3)=10),OutDom1+3,\"\"),IF(AND(YEAR(OutDom1+10)=AnoDoCalendário,MONTH(OutDom1+10)=10),OutDom1+10,\"\"))","v":"2020-10-06"},{"$f":"IF(DAY(OutDom1)=1,IF(AND(YEAR(OutDom1+4)=AnoDoCalendário,MONTH(OutDom1+4)=10),OutDom1+4,\"\"),IF(AND(YEAR(OutDom1+11)=AnoDoCalendário,MONTH(OutDom1+11)=10),OutDom1+11,\"\"))","v":"2020-10-07"},{"$f":"IF(DAY(OutDom1)=1,IF(AND(YEAR(OutDom1+5)=AnoDoCalendário,MONTH(OutDom1+5)=10),OutDom1+5,\"\"),IF(AND(YEAR(OutDom1+12)=AnoDoCalendário,MONTH(OutDom1+12)=10),OutDom1+12,\"\"))","v":"2020-10-08"},{"$f":"IF(DAY(OutDom1)=1,IF(AND(YEAR(OutDom1+6)=AnoDoCalendário,MONTH(OutDom1+6)=10),OutDom1+6,\"\"),IF(AND(YEAR(OutDom1+13)=AnoDoCalendário,MONTH(OutDom1+13)=10),OutDom1+13,\"\"))","v":"2020-10-09"},{"$f":"IF(DAY(OutDom1)=1,IF(AND(YEAR(OutDom1+7)=AnoDoCalendário,MONTH(OutDom1+7)=10),OutDom1+7,\"\"),IF(AND(YEAR(OutDom1+14)=AnoDoCalendário,MONTH(OutDom1+14)=10),OutDom1+14,\"\"))","v":"2020-10-10"}]
[null,null,{"$f":"IF(DAY(SetDom1)=1,IF(AND(YEAR(SetDom1+8)=AnoDoCalendário,MONTH(SetDom1+8)=9),SetDom1+8,\"\"),IF(AND(YEAR(SetDom1+15)=AnoDoCalendário,MONTH(SetDom1+15)=9),SetDom1+15,\"\"))","v":"2020-09-13"},{"$f":"IF(DAY(SetDom1)=1,IF(AND(YEAR(SetDom1+9)=AnoDoCalendário,MONTH(SetDom1+9)=9),SetDom1+9,\"\"),IF(AND(YEAR(SetDom1+16)=AnoDoCalendário,MONTH(SetDom1+16)=9),SetDom1+16,\"\"))","v":"2020-09-14"},{"$f":"IF(DAY(SetDom1)=1,IF(AND(YEAR(SetDom1+10)=AnoDoCalendário,MONTH(SetDom1+10)=9),SetDom1+10,\"\"),IF(AND(YEAR(SetDom1+17)=AnoDoCalendário,MONTH(SetDom1+17)=9),SetDom1+17,\"\"))","v":"2020-09-15"},{"$f":"IF(DAY(SetDom1)=1,IF(AND(YEAR(SetDom1+11)=AnoDoCalendário,MONTH(SetDom1+11)=9),SetDom1+11,\"\"),IF(AND(YEAR(SetDom1+18)=AnoDoCalendário,MONTH(SetDom1+18)=9),SetDom1+18,\"\"))","v":"2020-09-16"},{"$f":"IF(DAY(SetDom1)=1,IF(AND(YEAR(SetDom1+12)=AnoDoCalendário,MONTH(SetDom1+12)=9),SetDom1+12,\"\"),IF(AND(YEAR(SetDom1+19)=AnoDoCalendário,MONTH(SetDom1+19)=9),SetDom1+19,\"\"))","v":"2020-09-17"},{"$f":"IF(DAY(SetDom1)=1,IF(AND(YEAR(SetDom1+13)=AnoDoCalendário,MONTH(SetDom1+13)=9),SetDom1+13,\"\"),IF(AND(YEAR(SetDom1+20)=AnoDoCalendário,MONTH(SetDom1+20)=9),SetDom1+20,\"\"))","v":"2020-09-18"},{"$f":"IF(DAY(SetDom1)=1,IF(AND(YEAR(SetDom1+14)=AnoDoCalendário,MONTH(SetDom1+14)=9),SetDom1+14,\"\"),IF(AND(YEAR(SetDom1+21)=AnoDoCalendário,MONTH(SetDom1+21)=9),SetDom1+21,\"\"))","v":"2020-09-19"},null,{"$f":"IF(DAY(OutDom1)=1,IF(AND(YEAR(OutDom1+8)=AnoDoCalendário,MONTH(OutDom1+8)=10),OutDom1+8,\"\"),IF(AND(YEAR(OutDom1+15)=AnoDoCalendário,MONTH(OutDom1+15)=10),OutDom1+15,\"\"))","v":"2020-10-11"},{"$f":"IF(DAY(OutDom1)=1,IF(AND(YEAR(OutDom1+9)=AnoDoCalendário,MONTH(OutDom1+9)=10),OutDom1+9,\"\"),IF(AND(YEAR(OutDom1+16)=AnoDoCalendário,MONTH(OutDom1+16)=10),OutDom1+16,\"\"))","v":"2020-10-12"},{"$f":"IF(DAY(OutDom1)=1,IF(AND(YEAR(OutDom1+10)=AnoDoCalendário,MONTH(OutDom1+10)=10),OutDom1+10,\"\"),IF(AND(YEAR(OutDom1+17)=AnoDoCalendário,MONTH(OutDom1+17)=10),OutDom1+17,\"\"))","v":"2020-10-13"},{"$f":"IF(DAY(OutDom1)=1,IF(AND(YEAR(OutDom1+11)=AnoDoCalendário,MONTH(OutDom1+11)=10),OutDom1+11,\"\"),IF(AND(YEAR(OutDom1+18)=AnoDoCalendário,MONTH(OutDom1+18)=10),OutDom1+18,\"\"))","v":"2020-10-14"},{"$f":"IF(DAY(OutDom1)=1,IF(AND(YEAR(OutDom1+12)=AnoDoCalendário,MONTH(OutDom1+12)=10),OutDom1+12,\"\"),IF(AND(YEAR(OutDom1+19)=AnoDoCalendário,MONTH(OutDom1+19)=10),OutDom1+19,\"\"))","v":"2020-10-15"},{"$f":"IF(DAY(OutDom1)=1,IF(AND(YEAR(OutDom1+13)=AnoDoCalendário,MONTH(OutDom1+13)=10),OutDom1+13,\"\"),IF(AND(YEAR(OutDom1+20)=AnoDoCalendário,MONTH(OutDom1+20)=10),OutDom1+20,\"\"))","v":"2020-10-16"},{"$f":"IF(DAY(OutDom1)=1,IF(AND(YEAR(OutDom1+14)=AnoDoCalendário,MONTH(OutDom1+14)=10),OutDom1+14,\"\"),IF(AND(YEAR(OutDom1+21)=AnoDoCalendário,MONTH(OutDom1+21)=10),OutDom1+21,\"\"))","v":"2020-10-17"}]
["Insira o Endereço na célula U44",null,{"$f":"IF(DAY(SetDom1)=1,IF(AND(YEAR(SetDom1+15)=AnoDoCalendário,MONTH(SetDom1+15)=9),SetDom1+15,\"\"),IF(AND(YEAR(SetDom1+22)=AnoDoCalendário,MONTH(SetDom1+22)=9),SetDom1+22,\"\"))","v":"2020-09-20"},{"$f":"IF(DAY(SetDom1)=1,IF(AND(YEAR(SetDom1+16)=AnoDoCalendário,MONTH(SetDom1+16)=9),SetDom1+16,\"\"),IF(AND(YEAR(SetDom1+23)=AnoDoCalendário,MONTH(SetDom1+23)=9),SetDom1+23,\"\"))","v":"2020-09-21"},{"$f":"IF(DAY(SetDom1)=1,IF(AND(YEAR(SetDom1+17)=AnoDoCalendário,MONTH(SetDom1+17)=9),SetDom1+17,\"\"),IF(AND(YEAR(SetDom1+24)=AnoDoCalendário,MONTH(SetDom1+24)=9),SetDom1+24,\"\"))","v":"2020-09-22"},{"$f":"IF(DAY(SetDom1)=1,IF(AND(YEAR(SetDom1+18)=AnoDoCalendário,MONTH(SetDom1+18)=9),SetDom1+18,\"\"),IF(AND(YEAR(SetDom1+25)=AnoDoCalendário,MONTH(SetDom1+25)=9),SetDom1+25,\"\"))","v":"2020-09-23"},{"$f":"IF(DAY(SetDom1)=1,IF(AND(YEAR(SetDom1+19)=AnoDoCalendário,MONTH(SetDom1+19)=9),SetDom1+19,\"\"),IF(AND(YEAR(SetDom1+26)=AnoDoCalendário,MONTH(SetDom1+26)=9),SetDom1+26,\"\"))","v":"2020-09-24"},{"$f":"IF(DAY(SetDom1)=1,IF(AND(YEAR(SetDom1+20)=AnoDoCalendário,MONTH(SetDom1+20)=9),SetDom1+20,\"\"),IF(AND(YEAR(SetDom1+27)=AnoDoCalendário,MONTH(SetDom1+27)=9),SetDom1+27,\"\"))","v":"2020-09-25"},{"$f":"IF(DAY(SetDom1)=1,IF(AND(YEAR(SetDom1+21)=AnoDoCalendário,MONTH(SetDom1+21)=9),SetDom1+21,\"\"),IF(AND(YEAR(SetDom1+28)=AnoDoCalendário,MONTH(SetDom1+28)=9),SetDom1+28,\"\"))","v":"2020-09-26"},null,{"$f":"IF(DAY(OutDom1)=1,IF(AND(YEAR(OutDom1+15)=AnoDoCalendário,MONTH(OutDom1+15)=10),OutDom1+15,\"\"),IF(AND(YEAR(OutDom1+22)=AnoDoCalendário,MONTH(OutDom1+22)=10),OutDom1+22,\"\"))","v":"2020-10-18"},{"$f":"IF(DAY(OutDom1)=1,IF(AND(YEAR(OutDom1+16)=AnoDoCalendário,MONTH(OutDom1+16)=10),OutDom1+16,\"\"),IF(AND(YEAR(OutDom1+23)=AnoDoCalendário,MONTH(OutDom1+23)=10),OutDom1+23,\"\"))","v":"2020-10-19"},{"$f":"IF(DAY(OutDom1)=1,IF(AND(YEAR(OutDom1+17)=AnoDoCalendário,MONTH(OutDom1+17)=10),OutDom1+17,\"\"),IF(AND(YEAR(OutDom1+24)=AnoDoCalendário,MONTH(OutDom1+24)=10),OutDom1+24,\"\"))","v":"2020-10-20"},{"$f":"IF(DAY(OutDom1)=1,IF(AND(YEAR(OutDom1+18)=AnoDoCalendário,MONTH(OutDom1+18)=10),OutDom1+18,\"\"),IF(AND(YEAR(OutDom1+25)=AnoDoCalendário,MONTH(OutDom1+25)=10),OutDom1+25,\"\"))","v":"2020-10-21"},{"$f":"IF(DAY(OutDom1)=1,IF(AND(YEAR(OutDom1+19)=AnoDoCalendário,MONTH(OutDom1+19)=10),OutDom1+19,\"\"),IF(AND(YEAR(OutDom1+26)=AnoDoCalendário,MONTH(OutDom1+26)=10),OutDom1+26,\"\"))","v":"2020-10-22"},{"$f":"IF(DAY(OutDom1)=1,IF(AND(YEAR(OutDom1+20)=AnoDoCalendário,MONTH(OutDom1+20)=10),OutDom1+20,\"\"),IF(AND(YEAR(OutDom1+27)=AnoDoCalendário,MONTH(OutDom1+27)=10),OutDom1+27,\"\"))","v":"2020-10-23"},{"$f":"IF(DAY(OutDom1)=1,IF(AND(YEAR(OutDom1+21)=AnoDoCalendário,MONTH(OutDom1+21)=10),OutDom1+21,\"\"),IF(AND(YEAR(OutDom1+28)=AnoDoCalendário,MONTH(OutDom1+28)=10),OutDom1+28,\"\"))","v":"2020-10-24"},{"$nulls":3},"Endereço"]
["Insira a Cidade, o Estado e o CEP na célula U45. A próxima instrução está na célula A47",null,{"$f":"IF(DAY(SetDom1)=1,IF(AND(YEAR(SetDom1+22)=AnoDoCalendário,MONTH(SetDom1+22)=9),SetDom1+22,\"\"),IF(AND(YEAR(SetDom1+29)=AnoDoCalendário,MONTH(SetDom1+29)=9),SetDom1+29,\"\"))","v":"2020-09-27"},{"$f":"IF(DAY(SetDom1)=1,IF(AND(YEAR(SetDom1+23)=AnoDoCalendário,MONTH(SetDom1+23)=9),SetDom1+23,\"\"),IF(AND(YEAR(SetDom1+30)=AnoDoCalendário,MONTH(SetDom1+30)=9),SetDom1+30,\"\"))","v":"2020-09-28"},{"$f":"IF(DAY(SetDom1)=1,IF(AND(YEAR(SetDom1+24)=AnoDoCalendário,MONTH(SetDom1+24)=9),SetDom1+24,\"\"),IF(AND(YEAR(SetDom1+31)=AnoDoCalendário,MONTH(SetDom1+31)=9),SetDom1+31,\"\"))","v":"2020-09-29"},{"$f":"IF(DAY(SetDom1)=1,IF(AND(YEAR(SetDom1+25)=AnoDoCalendário,MONTH(SetDom1+25)=9),SetDom1+25,\"\"),IF(AND(YEAR(SetDom1+32)=AnoDoCalendário,MONTH(SetDom1+32)=9),SetDom1+32,\"\"))","v":"2020-09-30"},{"$f":"IF(DAY(SetDom1)=1,IF(AND(YEAR(SetDom1+26)=AnoDoCalendário,MONTH(SetDom1+26)=9),SetDom1+26,\"\"),IF(AND(YEAR(SetDom1+33)=AnoDoCalendário,MONTH(SetDom1+33)=9),SetDom1+33,\"\"))","v":""},{"$f":"IF(DAY(SetDom1)=1,IF(AND(YEAR(SetDom1+27)=AnoDoCalendário,MONTH(SetDom1+27)=9),SetDom1+27,\"\"),IF(AND(YEAR(SetDom1+34)=AnoDoCalendário,MONTH(SetDom1+34)=9),SetDom1+34,\"\"))","v":""},{"$f":"IF(DAY(SetDom1)=1,IF(AND(YEAR(SetDom1+28)=AnoDoCalendário,MONTH(SetDom1+28)=9),SetDom1+28,\"\"),IF(AND(YEAR(SetDom1+35)=AnoDoCalendário,MONTH(SetDom1+35)=9),SetDom1+35,\"\"))","v":""},null,{"$f":"IF(DAY(OutDom1)=1,IF(AND(YEAR(OutDom1+22)=AnoDoCalendário,MONTH(OutDom1+22)=10),OutDom1+22,\"\"),IF(AND(YEAR(OutDom1+29)=AnoDoCalendário,MONTH(OutDom1+29)=10),OutDom1+29,\"\"))","v":"2020-10-25"},{"$f":"IF(DAY(OutDom1)=1,IF(AND(YEAR(OutDom1+23)=AnoDoCalendário,MONTH(OutDom1+23)=10),OutDom1+23,\"\"),IF(AND(YEAR(OutDom1+30)=AnoDoCalendário,MONTH(OutDom1+30)=10),OutDom1+30,\"\"))","v":"2020-10-26"},{"$f":"IF(DAY(OutDom1)=1,IF(AND(YEAR(OutDom1+24)=AnoDoCalendário,MONTH(OutDom1+24)=10),OutDom1+24,\"\"),IF(AND(YEAR(OutDom1+31)=AnoDoCalendário,MONTH(OutDom1+31)=10),OutDom1+31,\"\"))","v":"2020-10-27"},{"$f":"IF(DAY(OutDom1)=1,IF(AND(YEAR(OutDom1+25)=AnoDoCalendário,MONTH(OutDom1+25)=10),OutDom1+25,\"\"),IF(AND(YEAR(OutDom1+32)=AnoDoCalendário,MONTH(OutDom1+32)=10),OutDom1+32,\"\"))","v":"2020-10-28"},{"$f":"IF(DAY(OutDom1)=1,IF(AND(YEAR(OutDom1+26)=AnoDoCalendário,MONTH(OutDom1+26)=10),OutDom1+26,\"\"),IF(AND(YEAR(OutDom1+33)=AnoDoCalendário,MONTH(OutDom1+33)=10),OutDom1+33,\"\"))","v":"2020-10-29"},{"$f":"IF(DAY(OutDom1)=1,IF(AND(YEAR(OutDom1+27)=AnoDoCalendário,MONTH(OutDom1+27)=10),OutDom1+27,\"\"),IF(AND(YEAR(OutDom1+34)=AnoDoCalendário,MONTH(OutDom1+34)=10),OutDom1+34,\"\"))","v":"2020-10-30"},{"$f":"IF(DAY(OutDom1)=1,IF(AND(YEAR(OutDom1+28)=AnoDoCalendário,MONTH(OutDom1+28)=10),OutDom1+28,\"\"),IF(AND(YEAR(OutDom1+35)=AnoDoCalendário,MONTH(OutDom1+35)=10),OutDom1+35,\"\"))","v":"2020-10-31"},{"$nulls":3},"Cidade, estado, CEP"]
[null,null,{"$f":"IF(DAY(SetDom1)=1,IF(AND(YEAR(SetDom1+29)=AnoDoCalendário,MONTH(SetDom1+29)=9),SetDom1+29,\"\"),IF(AND(YEAR(SetDom1+36)=AnoDoCalendário,MONTH(SetDom1+36)=9),SetDom1+36,\"\"))","v":""},{"$f":"IF(DAY(SetDom1)=1,IF(AND(YEAR(SetDom1+30)=AnoDoCalendário,MONTH(SetDom1+30)=9),SetDom1+30,\"\"),IF(AND(YEAR(SetDom1+37)=AnoDoCalendário,MONTH(SetDom1+37)=9),SetDom1+37,\"\"))","v":""},{"$f":"IF(DAY(SetDom1)=1,IF(AND(YEAR(SetDom1+31)=AnoDoCalendário,MONTH(SetDom1+31)=9),SetDom1+31,\"\"),IF(AND(YEAR(SetDom1+38)=AnoDoCalendário,MONTH(SetDom1+38)=9),SetDom1+38,\"\"))","v":""},{"$f":"IF(DAY(SetDom1)=1,IF(AND(YEAR(SetDom1+32)=AnoDoCalendário,MONTH(SetDom1+32)=9),SetDom1+32,\"\"),IF(AND(YEAR(SetDom1+39)=AnoDoCalendário,MONTH(SetDom1+39)=9),SetDom1+39,\"\"))","v":""},{"$f":"IF(DAY(SetDom1)=1,IF(AND(YEAR(SetDom1+33)=AnoDoCalendário,MONTH(SetDom1+33)=9),SetDom1+33,\"\"),IF(AND(YEAR(SetDom1+40)=AnoDoCalendário,MONTH(SetDom1+40)=9),SetDom1+40,\"\"))","v":""},{"$f":"IF(DAY(SetDom1)=1,IF(AND(YEAR(SetDom1+34)=AnoDoCalendário,MONTH(SetDom1+34)=9),SetDom1+34,\"\"),IF(AND(YEAR(SetDom1+41)=AnoDoCalendário,MONTH(SetDom1+41)=9),SetDom1+41,\"\"))","v":""},{"$f":"IF(DAY(SetDom1)=1,IF(AND(YEAR(SetDom1+35)=AnoDoCalendário,MONTH(SetDom1+35)=9),SetDom1+35,\"\"),IF(AND(YEAR(SetDom1+42)=AnoDoCalendário,MONTH(SetDom1+42)=9),SetDom1+42,\"\"))","v":""},null,{"$f":"IF(DAY(OutDom1)=1,IF(AND(YEAR(OutDom1+29)=AnoDoCalendário,MONTH(OutDom1+29)=10),OutDom1+29,\"\"),IF(AND(YEAR(OutDom1+36)=AnoDoCalendário,MONTH(OutDom1+36)=10),OutDom1+36,\"\"))","v":""},{"$f":"IF(DAY(OutDom1)=1,IF(AND(YEAR(OutDom1+30)=AnoDoCalendário,MONTH(OutDom1+30)=10),OutDom1+30,\"\"),IF(AND(YEAR(OutDom1+37)=AnoDoCalendário,MONTH(OutDom1+37)=10),OutDom1+37,\"\"))","v":""},{"$f":"IF(DAY(OutDom1)=1,IF(AND(YEAR(OutDom1+31)=AnoDoCalendário,MONTH(OutDom1+31)=10),OutDom1+31,\"\"),IF(AND(YEAR(OutDom1+38)=AnoDoCalendário,MONTH(OutDom1+38)=10),OutDom1+38,\"\"))","v":""},{"$f":"IF(DAY(OutDom1)=1,IF(AND(YEAR(OutDom1+32)=AnoDoCalendário,MONTH(OutDom1+32)=10),OutDom1+32,\"\"),IF(AND(YEAR(OutDom1+39)=AnoDoCalendário,MONTH(OutDom1+39)=10),OutDom1+39,\"\"))","v":""},{"$f":"IF(DAY(OutDom1)=1,IF(AND(YEAR(OutDom1+33)=AnoDoCalendário,MONTH(OutDom1+33)=10),OutDom1+33,\"\"),IF(AND(YEAR(OutDom1+40)=AnoDoCalendário,MONTH(OutDom1+40)=10),OutDom1+40,\"\"))","v":""},{"$f":"IF(DAY(OutDom1)=1,IF(AND(YEAR(OutDom1+34)=AnoDoCalendário,MONTH(OutDom1+34)=10),OutDom1+34,\"\"),IF(AND(YEAR(OutDom1+41)=AnoDoCalendário,MONTH(OutDom1+41)=10),OutDom1+41,\"\"))","v":""},{"$f":"IF(DAY(OutDom1)=1,IF(AND(YEAR(OutDom1+35)=AnoDoCalendário,MONTH(OutDom1+35)=10),OutDom1+35,\"\"),IF(AND(YEAR(OutDom1+42)=AnoDoCalendário,MONTH(OutDom1+42)=10),OutDom1+42,\"\"))","v":""}]
["Insira o Número de Telefone da Empresa na célula U47",{"$nulls":19},"Telefone"]
["O rótulo de Novembro está na célula C48 e a de dezembro na célula K48. Insira o endereço de E-mail na célula U48",null,"NOVEMBRO",{"$nulls":7},"DEZEMBRO",{"$nulls":9},"Email"]
["A tabela do calendário de Novembro está nas células C49 a I55 e a de Dezembro nas células K49 a Q55. A próxima instrução está na célula A51",null,"DOM","SEG","TER","QUA","QUI","SEX","SÁB",null,"DOM","SEG","TER","QUA","QUI","SEX","SÁB",{"$nulls":3},"Site da web"]
[null,null,{"$f":"IF(DAY(NovDom1)=1,\"\",IF(AND(YEAR(NovDom1+1)=AnoDoCalendário,MONTH(NovDom1+1)=11),NovDom1+1,\"\"))","v":"2020-11-01"},{"$f":"IF(DAY(NovDom1)=1,\"\",IF(AND(YEAR(NovDom1+2)=AnoDoCalendário,MONTH(NovDom1+2)=11),NovDom1+2,\"\"))","v":"2020-11-02"},{"$f":"IF(DAY(NovDom1)=1,\"\",IF(AND(YEAR(NovDom1+3)=AnoDoCalendário,MONTH(NovDom1+3)=11),NovDom1+3,\"\"))","v":"2020-11-03"},{"$f":"IF(DAY(NovDom1)=1,\"\",IF(AND(YEAR(NovDom1+4)=AnoDoCalendário,MONTH(NovDom1+4)=11),NovDom1+4,\"\"))","v":"2020-11-04"},{"$f":"IF(DAY(NovDom1)=1,\"\",IF(AND(YEAR(NovDom1+5)=AnoDoCalendário,MONTH(NovDom1+5)=11),NovDom1+5,\"\"))","v":"2020-11-05"},{"$f":"IF(DAY(NovDom1)=1,\"\",IF(AND(YEAR(NovDom1+6)=AnoDoCalendário,MONTH(NovDom1+6)=11),NovDom1+6,\"\"))","v":"2020-11-06"},{"$f":"IF(DAY(NovDom1)=1,IF(AND(YEAR(NovDom1)=AnoDoCalendário,MONTH(NovDom1)=11),NovDom1,\"\"),IF(AND(YEAR(NovDom1+7)=AnoDoCalendário,MONTH(NovDom1+7)=11),NovDom1+7,\"\"))","v":"2020-11-07"},null,{"$f":"IF(DAY(DezDom1)=1,\"\",IF(AND(YEAR(DezDom1+1)=AnoDoCalendário,MONTH(DezDom1+1)=12),DezDom1+1,\"\"))","v":""},{"$f":"IF(DAY(DezDom1)=1,\"\",IF(AND(YEAR(DezDom1+2)=AnoDoCalendário,MONTH(DezDom1+2)=12),DezDom1+2,\"\"))","v":""},{"$f":"IF(DAY(DezDom1)=1,\"\",IF(AND(YEAR(DezDom1+3)=AnoDoCalendário,MONTH(DezDom1+3)=12),DezDom1+3,\"\"))","v":"2020-12-01"},{"$f":"IF(DAY(DezDom1)=1,\"\",IF(AND(YEAR(DezDom1+4)=AnoDoCalendário,MONTH(DezDom1+4)=12),DezDom1+4,\"\"))","v":"2020-12-02"},{"$f":"IF(DAY(DezDom1)=1,\"\",IF(AND(YEAR(DezDom1+5)=AnoDoCalendário,MONTH(DezDom1+5)=12),DezDom1+5,\"\"))","v":"2020-12-03"},{"$f":"IF(DAY(DezDom1)=1,\"\",IF(AND(YEAR(DezDom1+6)=AnoDoCalendário,MONTH(DezDom1+6)=12),DezDom1+6,\"\"))","v":"2020-12-04"},{"$f":"IF(DAY(DezDom1)=1,IF(AND(YEAR(DezDom1)=AnoDoCalendário,MONTH(DezDom1)=12),DezDom1,\"\"),IF(AND(YEAR(DezDom1+7)=AnoDoCalendário,MONTH(DezDom1+7)=12),DezDom1+7,\"\"))","v":"2020-12-05"}]
["Adicione o Logotipo da Empresa na célula U51",null,{"$f":"IF(DAY(NovDom1)=1,IF(AND(YEAR(NovDom1+1)=AnoDoCalendário,MONTH(NovDom1+1)=11),NovDom1+1,\"\"),IF(AND(YEAR(NovDom1+8)=AnoDoCalendário,MONTH(NovDom1+8)=11),NovDom1+8,\"\"))","v":"2020-11-08"},{"$f":"IF(DAY(NovDom1)=1,IF(AND(YEAR(NovDom1+2)=AnoDoCalendário,MONTH(NovDom1+2)=11),NovDom1+2,\"\"),IF(AND(YEAR(NovDom1+9)=AnoDoCalendário,MONTH(NovDom1+9)=11),NovDom1+9,\"\"))","v":"2020-11-09"},{"$f":"IF(DAY(NovDom1)=1,IF(AND(YEAR(NovDom1+3)=AnoDoCalendário,MONTH(NovDom1+3)=11),NovDom1+3,\"\"),IF(AND(YEAR(NovDom1+10)=AnoDoCalendário,MONTH(NovDom1+10)=11),NovDom1+10,\"\"))","v":"2020-11-10"},{"$f":"IF(DAY(NovDom1)=1,IF(AND(YEAR(NovDom1+4)=AnoDoCalendário,MONTH(NovDom1+4)=11),NovDom1+4,\"\"),IF(AND(YEAR(NovDom1+11)=AnoDoCalendário,MONTH(NovDom1+11)=11),NovDom1+11,\"\"))","v":"2020-11-11"},{"$f":"IF(DAY(NovDom1)=1,IF(AND(YEAR(NovDom1+5)=AnoDoCalendário,MONTH(NovDom1+5)=11),NovDom1+5,\"\"),IF(AND(YEAR(NovDom1+12)=AnoDoCalendário,MONTH(NovDom1+12)=11),NovDom1+12,\"\"))","v":"2020-11-12"},{"$f":"IF(DAY(NovDom1)=1,IF(AND(YEAR(NovDom1+6)=AnoDoCalendário,MONTH(NovDom1+6)=11),NovDom1+6,\"\"),IF(AND(YEAR(NovDom1+13)=AnoDoCalendário,MONTH(NovDom1+13)=11),NovDom1+13,\"\"))","v":"2020-11-13"},{"$f":"IF(DAY(NovDom1)=1,IF(AND(YEAR(NovDom1+7)=AnoDoCalendário,MONTH(NovDom1+7)=11),NovDom1+7,\"\"),IF(AND(YEAR(NovDom1+14)=AnoDoCalendário,MONTH(NovDom1+14)=11),NovDom1+14,\"\"))","v":"2020-11-14"},null,{"$f":"IF(DAY(DezDom1)=1,IF(AND(YEAR(DezDom1+1)=AnoDoCalendário,MONTH(DezDom1+1)=12),DezDom1+1,\"\"),IF(AND(YEAR(DezDom1+8)=AnoDoCalendário,MONTH(DezDom1+8)=12),DezDom1+8,\"\"))","v":"2020-12-06"},{"$f":"IF(DAY(DezDom1)=1,IF(AND(YEAR(DezDom1+2)=AnoDoCalendário,MONTH(DezDom1+2)=12),DezDom1+2,\"\"),IF(AND(YEAR(DezDom1+9)=AnoDoCalendário,MONTH(DezDom1+9)=12),DezDom1+9,\"\"))","v":"2020-12-07"},{"$f":"IF(DAY(DezDom1)=1,IF(AND(YEAR(DezDom1+3)=AnoDoCalendário,MONTH(DezDom1+3)=12),DezDom1+3,\"\"),IF(AND(YEAR(DezDom1+10)=AnoDoCalendário,MONTH(DezDom1+10)=12),DezDom1+10,\"\"))","v":"2020-12-08"},{"$f":"IF(DAY(DezDom1)=1,IF(AND(YEAR(DezDom1+4)=AnoDoCalendário,MONTH(DezDom1+4)=12),DezDom1+4,\"\"),IF(AND(YEAR(DezDom1+11)=AnoDoCalendário,MONTH(DezDom1+11)=12),DezDom1+11,\"\"))","v":"2020-12-09"},{"$f":"IF(DAY(DezDom1)=1,IF(AND(YEAR(DezDom1+5)=AnoDoCalendário,MONTH(DezDom1+5)=12),DezDom1+5,\"\"),IF(AND(YEAR(DezDom1+12)=AnoDoCalendário,MONTH(DezDom1+12)=12),DezDom1+12,\"\"))","v":"2020-12-10"},{"$f":"IF(DAY(DezDom1)=1,IF(AND(YEAR(DezDom1+6)=AnoDoCalendário,MONTH(DezDom1+6)=12),DezDom1+6,\"\"),IF(AND(YEAR(DezDom1+13)=AnoDoCalendário,MONTH(DezDom1+13)=12),DezDom1+13,\"\"))","v":"2020-12-11"},{"$f":"IF(DAY(DezDom1)=1,IF(AND(YEAR(DezDom1+7)=AnoDoCalendário,MONTH(DezDom1+7)=12),DezDom1+7,\"\"),IF(AND(YEAR(DezDom1+14)=AnoDoCalendário,MONTH(DezDom1+14)=12),DezDom1+14,\"\"))","v":"2020-12-12"},{"$nulls":3},"O espaço reservado para o Logotipo está nesta célula."]
[null,null,{"$f":"IF(DAY(NovDom1)=1,IF(AND(YEAR(NovDom1+8)=AnoDoCalendário,MONTH(NovDom1+8)=11),NovDom1+8,\"\"),IF(AND(YEAR(NovDom1+15)=AnoDoCalendário,MONTH(NovDom1+15)=11),NovDom1+15,\"\"))","v":"2020-11-15"},{"$f":"IF(DAY(NovDom1)=1,IF(AND(YEAR(NovDom1+9)=AnoDoCalendário,MONTH(NovDom1+9)=11),NovDom1+9,\"\"),IF(AND(YEAR(NovDom1+16)=AnoDoCalendário,MONTH(NovDom1+16)=11),NovDom1+16,\"\"))","v":"2020-11-16"},{"$f":"IF(DAY(NovDom1)=1,IF(AND(YEAR(NovDom1+10)=AnoDoCalendário,MONTH(NovDom1+10)=11),NovDom1+10,\"\"),IF(AND(YEAR(NovDom1+17)=AnoDoCalendário,MONTH(NovDom1+17)=11),NovDom1+17,\"\"))","v":"2020-11-17"},{"$f":"IF(DAY(NovDom1)=1,IF(AND(YEAR(NovDom1+11)=AnoDoCalendário,MONTH(NovDom1+11)=11),NovDom1+11,\"\"),IF(AND(YEAR(NovDom1+18)=AnoDoCalendário,MONTH(NovDom1+18)=11),NovDom1+18,\"\"))","v":"2020-11-18"},{"$f":"IF(DAY(NovDom1)=1,IF(AND(YEAR(NovDom1+12)=AnoDoCalendário,MONTH(NovDom1+12)=11),NovDom1+12,\"\"),IF(AND(YEAR(NovDom1+19)=AnoDoCalendário,MONTH(NovDom1+19)=11),NovDom1+19,\"\"))","v":"2020-11-19"},{"$f":"IF(DAY(NovDom1)=1,IF(AND(YEAR(NovDom1+13)=AnoDoCalendário,MONTH(NovDom1+13)=11),NovDom1+13,\"\"),IF(AND(YEAR(NovDom1+20)=AnoDoCalendário,MONTH(NovDom1+20)=11),NovDom1+20,\"\"))","v":"2020-11-20"},{"$f":"IF(DAY(NovDom1)=1,IF(AND(YEAR(NovDom1+14)=AnoDoCalendário,MONTH(NovDom1+14)=11),NovDom1+14,\"\"),IF(AND(YEAR(NovDom1+21)=AnoDoCalendário,MONTH(NovDom1+21)=11),NovDom1+21,\"\"))","v":"2020-11-21"},null,{"$f":"IF(DAY(DezDom1)=1,IF(AND(YEAR(DezDom1+8)=AnoDoCalendário,MONTH(DezDom1+8)=12),DezDom1+8,\"\"),IF(AND(YEAR(DezDom1+15)=AnoDoCalendário,MONTH(DezDom1+15)=12),DezDom1+15,\"\"))","v":"2020-12-13"},{"$f":"IF(DAY(DezDom1)=1,IF(AND(YEAR(DezDom1+9)=AnoDoCalendário,MONTH(DezDom1+9)=12),DezDom1+9,\"\"),IF(AND(YEAR(DezDom1+16)=AnoDoCalendário,MONTH(DezDom1+16)=12),DezDom1+16,\"\"))","v":"2020-12-14"},{"$f":"IF(DAY(DezDom1)=1,IF(AND(YEAR(DezDom1+10)=AnoDoCalendário,MONTH(DezDom1+10)=12),DezDom1+10,\"\"),IF(AND(YEAR(DezDom1+17)=AnoDoCalendário,MONTH(DezDom1+17)=12),DezDom1+17,\"\"))","v":"2020-12-15"},{"$f":"IF(DAY(DezDom1)=1,IF(AND(YEAR(DezDom1+11)=AnoDoCalendário,MONTH(DezDom1+11)=12),DezDom1+11,\"\"),IF(AND(YEAR(DezDom1+18)=AnoDoCalendário,MONTH(DezDom1+18)=12),DezDom1+18,\"\"))","v":"2020-12-16"},{"$f":"IF(DAY(DezDom1)=1,IF(AND(YEAR(DezDom1+12)=AnoDoCalendário,MONTH(DezDom1+12)=12),DezDom1+12,\"\"),IF(AND(YEAR(DezDom1+19)=AnoDoCalendário,MONTH(DezDom1+19)=12),DezDom1+19,\"\"))","v":"2020-12-17"},{"$f":"IF(DAY(DezDom1)=1,IF(AND(YEAR(DezDom1+13)=AnoDoCalendário,MONTH(DezDom1+13)=12),DezDom1+13,\"\"),IF(AND(YEAR(DezDom1+20)=AnoDoCalendário,MONTH(DezDom1+20)=12),DezDom1+20,\"\"))","v":"2020-12-18"},{"$f":"IF(DAY(DezDom1)=1,IF(AND(YEAR(DezDom1+14)=AnoDoCalendário,MONTH(DezDom1+14)=12),DezDom1+14,\"\"),IF(AND(YEAR(DezDom1+21)=AnoDoCalendário,MONTH(DezDom1+21)=12),DezDom1+21,\"\"))","v":"2020-12-19"}]
[null,null,{"$f":"IF(DAY(NovDom1)=1,IF(AND(YEAR(NovDom1+15)=AnoDoCalendário,MONTH(NovDom1+15)=11),NovDom1+15,\"\"),IF(AND(YEAR(NovDom1+22)=AnoDoCalendário,MONTH(NovDom1+22)=11),NovDom1+22,\"\"))","v":"2020-11-22"},{"$f":"IF(DAY(NovDom1)=1,IF(AND(YEAR(NovDom1+16)=AnoDoCalendário,MONTH(NovDom1+16)=11),NovDom1+16,\"\"),IF(AND(YEAR(NovDom1+23)=AnoDoCalendário,MONTH(NovDom1+23)=11),NovDom1+23,\"\"))","v":"2020-11-23"},{"$f":"IF(DAY(NovDom1)=1,IF(AND(YEAR(NovDom1+17)=AnoDoCalendário,MONTH(NovDom1+17)=11),NovDom1+17,\"\"),IF(AND(YEAR(NovDom1+24)=AnoDoCalendário,MONTH(NovDom1+24)=11),NovDom1+24,\"\"))","v":"2020-11-24"},{"$f":"IF(DAY(NovDom1)=1,IF(AND(YEAR(NovDom1+18)=AnoDoCalendário,MONTH(NovDom1+18)=11),NovDom1+18,\"\"),IF(AND(YEAR(NovDom1+25)=AnoDoCalendário,MONTH(NovDom1+25)=11),NovDom1+25,\"\"))","v":"2020-11-25"},{"$f":"IF(DAY(NovDom1)=1,IF(AND(YEAR(NovDom1+19)=AnoDoCalendário,MONTH(NovDom1+19)=11),NovDom1+19,\"\"),IF(AND(YEAR(NovDom1+26)=AnoDoCalendário,MONTH(NovDom1+26)=11),NovDom1+26,\"\"))","v":"2020-11-26"},{"$f":"IF(DAY(NovDom1)=1,IF(AND(YEAR(NovDom1+20)=AnoDoCalendário,MONTH(NovDom1+20)=11),NovDom1+20,\"\"),IF(AND(YEAR(NovDom1+27)=AnoDoCalendário,MONTH(NovDom1+27)=11),NovDom1+27,\"\"))","v":"2020-11-27"},{"$f":"IF(DAY(NovDom1)=1,IF(AND(YEAR(NovDom1+21)=AnoDoCalendário,MONTH(NovDom1+21)=11),NovDom1+21,\"\"),IF(AND(YEAR(NovDom1+28)=AnoDoCalendário,MONTH(NovDom1+28)=11),NovDom1+28,\"\"))","v":"2020-11-28"},null,{"$f":"IF(DAY(DezDom1)=1,IF(AND(YEAR(DezDom1+15)=AnoDoCalendário,MONTH(DezDom1+15)=12),DezDom1+15,\"\"),IF(AND(YEAR(DezDom1+22)=AnoDoCalendário,MONTH(DezDom1+22)=12),DezDom1+22,\"\"))","v":"2020-12-20"},{"$f":"IF(DAY(DezDom1)=1,IF(AND(YEAR(DezDom1+16)=AnoDoCalendário,MONTH(DezDom1+16)=12),DezDom1+16,\"\"),IF(AND(YEAR(DezDom1+23)=AnoDoCalendário,MONTH(DezDom1+23)=12),DezDom1+23,\"\"))","v":"2020-12-21"},{"$f":"IF(DAY(DezDom1)=1,IF(AND(YEAR(DezDom1+17)=AnoDoCalendário,MONTH(DezDom1+17)=12),DezDom1+17,\"\"),IF(AND(YEAR(DezDom1+24)=AnoDoCalendário,MONTH(DezDom1+24)=12),DezDom1+24,\"\"))","v":"2020-12-22"},{"$f":"IF(DAY(DezDom1)=1,IF(AND(YEAR(DezDom1+18)=AnoDoCalendário,MONTH(DezDom1+18)=12),DezDom1+18,\"\"),IF(AND(YEAR(DezDom1+25)=AnoDoCalendário,MONTH(DezDom1+25)=12),DezDom1+25,\"\"))","v":"2020-12-23"},{"$f":"IF(DAY(DezDom1)=1,IF(AND(YEAR(DezDom1+19)=AnoDoCalendário,MONTH(DezDom1+19)=12),DezDom1+19,\"\"),IF(AND(YEAR(DezDom1+26)=AnoDoCalendário,MONTH(DezDom1+26)=12),DezDom1+26,\"\"))","v":"2020-12-24"},{"$f":"IF(DAY(DezDom1)=1,IF(AND(YEAR(DezDom1+20)=AnoDoCalendário,MONTH(DezDom1+20)=12),DezDom1+20,\"\"),IF(AND(YEAR(DezDom1+27)=AnoDoCalendário,MONTH(DezDom1+27)=12),DezDom1+27,\"\"))","v":"2020-12-25"},{"$f":"IF(DAY(DezDom1)=1,IF(AND(YEAR(DezDom1+21)=AnoDoCalendário,MONTH(DezDom1+21)=12),DezDom1+21,\"\"),IF(AND(YEAR(DezDom1+28)=AnoDoCalendário,MONTH(DezDom1+28)=12),DezDom1+28,\"\"))","v":"2020-12-26"}]
[null,null,{"$f":"IF(DAY(NovDom1)=1,IF(AND(YEAR(NovDom1+22)=AnoDoCalendário,MONTH(NovDom1+22)=11),NovDom1+22,\"\"),IF(AND(YEAR(NovDom1+29)=AnoDoCalendário,MONTH(NovDom1+29)=11),NovDom1+29,\"\"))","v":"2020-11-29"},{"$f":"IF(DAY(NovDom1)=1,IF(AND(YEAR(NovDom1+23)=AnoDoCalendário,MONTH(NovDom1+23)=11),NovDom1+23,\"\"),IF(AND(YEAR(NovDom1+30)=AnoDoCalendário,MONTH(NovDom1+30)=11),NovDom1+30,\"\"))","v":"2020-11-30"},{"$f":"IF(DAY(NovDom1)=1,IF(AND(YEAR(NovDom1+24)=AnoDoCalendário,MONTH(NovDom1+24)=11),NovDom1+24,\"\"),IF(AND(YEAR(NovDom1+31)=AnoDoCalendário,MONTH(NovDom1+31)=11),NovDom1+31,\"\"))","v":""},{"$f":"IF(DAY(NovDom1)=1,IF(AND(YEAR(NovDom1+25)=AnoDoCalendário,MONTH(NovDom1+25)=11),NovDom1+25,\"\"),IF(AND(YEAR(NovDom1+32)=AnoDoCalendário,MONTH(NovDom1+32)=11),NovDom1+32,\"\"))","v":""},{"$f":"IF(DAY(NovDom1)=1,IF(AND(YEAR(NovDom1+26)=AnoDoCalendário,MONTH(NovDom1+26)=11),NovDom1+26,\"\"),IF(AND(YEAR(NovDom1+33)=AnoDoCalendário,MONTH(NovDom1+33)=11),NovDom1+33,\"\"))","v":""},{"$f":"IF(DAY(NovDom1)=1,IF(AND(YEAR(NovDom1+27)=AnoDoCalendário,MONTH(NovDom1+27)=11),NovDom1+27,\"\"),IF(AND(YEAR(NovDom1+34)=AnoDoCalendário,MONTH(NovDom1+34)=11),NovDom1+34,\"\"))","v":""},{"$f":"IF(DAY(NovDom1)=1,IF(AND(YEAR(NovDom1+28)=AnoDoCalendário,MONTH(NovDom1+28)=11),NovDom1+28,\"\"),IF(AND(YEAR(NovDom1+35)=AnoDoCalendário,MONTH(NovDom1+35)=11),NovDom1+35,\"\"))","v":""},null,{"$f":"IF(DAY(DezDom1)=1,IF(AND(YEAR(DezDom1+22)=AnoDoCalendário,MONTH(DezDom1+22)=12),DezDom1+22,\"\"),IF(AND(YEAR(DezDom1+29)=AnoDoCalendário,MONTH(DezDom1+29)=12),DezDom1+29,\"\"))","v":"2020-12-27"},{"$f":"IF(DAY(DezDom1)=1,IF(AND(YEAR(DezDom1+23)=AnoDoCalendário,MONTH(DezDom1+23)=12),DezDom1+23,\"\"),IF(AND(YEAR(DezDom1+30)=AnoDoCalendário,MONTH(DezDom1+30)=12),DezDom1+30,\"\"))","v":"2020-12-28"},{"$f":"IF(DAY(DezDom1)=1,IF(AND(YEAR(DezDom1+24)=AnoDoCalendário,MONTH(DezDom1+24)=12),DezDom1+24,\"\"),IF(AND(YEAR(DezDom1+31)=AnoDoCalendário,MONTH(DezDom1+31)=12),DezDom1+31,\"\"))","v":"2020-12-29"},{"$f":"IF(DAY(DezDom1)=1,IF(AND(YEAR(DezDom1+25)=AnoDoCalendário,MONTH(DezDom1+25)=12),DezDom1+25,\"\"),IF(AND(YEAR(DezDom1+32)=AnoDoCalendário,MONTH(DezDom1+32)=12),DezDom1+32,\"\"))","v":"2020-12-30"},{"$f":"IF(DAY(DezDom1)=1,IF(AND(YEAR(DezDom1+26)=AnoDoCalendário,MONTH(DezDom1+26)=12),DezDom1+26,\"\"),IF(AND(YEAR(DezDom1+33)=AnoDoCalendário,MONTH(DezDom1+33)=12),DezDom1+33,\"\"))","v":"2020-12-31"},{"$f":"IF(DAY(DezDom1)=1,IF(AND(YEAR(DezDom1+27)=AnoDoCalendário,MONTH(DezDom1+27)=12),DezDom1+27,\"\"),IF(AND(YEAR(DezDom1+34)=AnoDoCalendário,MONTH(DezDom1+34)=12),DezDom1+34,\"\"))","v":""},{"$f":"IF(DAY(DezDom1)=1,IF(AND(YEAR(DezDom1+28)=AnoDoCalendário,MONTH(DezDom1+28)=12),DezDom1+28,\"\"),IF(AND(YEAR(DezDom1+35)=AnoDoCalendário,MONTH(DezDom1+35)=12),DezDom1+35,\"\"))","v":""}]
[null,null,{"$f":"IF(DAY(NovDom1)=1,IF(AND(YEAR(NovDom1+29)=AnoDoCalendário,MONTH(NovDom1+29)=11),NovDom1+29,\"\"),IF(AND(YEAR(NovDom1+36)=AnoDoCalendário,MONTH(NovDom1+36)=11),NovDom1+36,\"\"))","v":""},{"$f":"IF(DAY(NovDom1)=1,IF(AND(YEAR(NovDom1+30)=AnoDoCalendário,MONTH(NovDom1+30)=11),NovDom1+30,\"\"),IF(AND(YEAR(NovDom1+37)=AnoDoCalendário,MONTH(NovDom1+37)=11),NovDom1+37,\"\"))","v":""},{"$f":"IF(DAY(NovDom1)=1,IF(AND(YEAR(NovDom1+31)=AnoDoCalendário,MONTH(NovDom1+31)=11),NovDom1+31,\"\"),IF(AND(YEAR(NovDom1+38)=AnoDoCalendário,MONTH(NovDom1+38)=11),NovDom1+38,\"\"))","v":""},{"$f":"IF(DAY(NovDom1)=1,IF(AND(YEAR(NovDom1+32)=AnoDoCalendário,MONTH(NovDom1+32)=11),NovDom1+32,\"\"),IF(AND(YEAR(NovDom1+39)=AnoDoCalendário,MONTH(NovDom1+39)=11),NovDom1+39,\"\"))","v":""},{"$f":"IF(DAY(NovDom1)=1,IF(AND(YEAR(NovDom1+33)=AnoDoCalendário,MONTH(NovDom1+33)=11),NovDom1+33,\"\"),IF(AND(YEAR(NovDom1+40)=AnoDoCalendário,MONTH(NovDom1+40)=11),NovDom1+40,\"\"))","v":""},{"$f":"IF(DAY(NovDom1)=1,IF(AND(YEAR(NovDom1+34)=AnoDoCalendário,MONTH(NovDom1+34)=11),NovDom1+34,\"\"),IF(AND(YEAR(NovDom1+41)=AnoDoCalendário,MONTH(NovDom1+41)=11),NovDom1+41,\"\"))","v":""},{"$f":"IF(DAY(NovDom1)=1,IF(AND(YEAR(NovDom1+35)=AnoDoCalendário,MONTH(NovDom1+35)=11),NovDom1+35,\"\"),IF(AND(YEAR(NovDom1+42)=AnoDoCalendário,MONTH(NovDom1+42)=11),NovDom1+42,\"\"))","v":""},null,{"$f":"IF(DAY(DezDom1)=1,IF(AND(YEAR(DezDom1+29)=AnoDoCalendário,MONTH(DezDom1+29)=12),DezDom1+29,\"\"),IF(AND(YEAR(DezDom1+36)=AnoDoCalendário,MONTH(DezDom1+36)=12),DezDom1+36,\"\"))","v":""},{"$f":"IF(DAY(DezDom1)=1,IF(AND(YEAR(DezDom1+30)=AnoDoCalendário,MONTH(DezDom1+30)=12),DezDom1+30,\"\"),IF(AND(YEAR(DezDom1+37)=AnoDoCalendário,MONTH(DezDom1+37)=12),DezDom1+37,\"\"))","v":""},{"$f":"IF(DAY(DezDom1)=1,IF(AND(YEAR(DezDom1+31)=AnoDoCalendário,MONTH(DezDom1+31)=12),DezDom1+31,\"\"),IF(AND(YEAR(DezDom1+38)=AnoDoCalendário,MONTH(DezDom1+38)=12),DezDom1+38,\"\"))","v":""},{"$f":"IF(DAY(DezDom1)=1,IF(AND(YEAR(DezDom1+32)=AnoDoCalendário,MONTH(DezDom1+32)=12),DezDom1+32,\"\"),IF(AND(YEAR(DezDom1+39)=AnoDoCalendário,MONTH(DezDom1+39)=12),DezDom1+39,\"\"))","v":""},{"$f":"IF(DAY(DezDom1)=1,IF(AND(YEAR(DezDom1+33)=AnoDoCalendário,MONTH(DezDom1+33)=12),DezDom1+33,\"\"),IF(AND(YEAR(DezDom1+40)=AnoDoCalendário,MONTH(DezDom1+40)=12),DezDom1+40,\"\"))","v":""},{"$f":"IF(DAY(DezDom1)=1,IF(AND(YEAR(DezDom1+34)=AnoDoCalendário,MONTH(DezDom1+34)=12),DezDom1+34,\"\"),IF(AND(YEAR(DezDom1+41)=AnoDoCalendário,MONTH(DezDom1+41)=12),DezDom1+41,\"\"))","v":""},{"$f":"IF(DAY(DezDom1)=1,IF(AND(YEAR(DezDom1+35)=AnoDoCalendário,MONTH(DezDom1+35)=12),DezDom1+35,\"\"),IF(AND(YEAR(DezDom1+42)=AnoDoCalendário,MONTH(DezDom1+42)=12),DezDom1+42,\"\"))","v":""}]